Workbook

Sheet Дод_2
K1: Додаток 2
K2: до рішення виконкому міської ради
K3: 22.08.2025 №1068
A4: ПРОГРАМА
A5: розвитку та утримання житлово-комунального господарства міста на період 2017–2028 років
A6: Перелік завдань і заходів Програми розвитку та утримання житлово-комунального господарства міста на період 2017–2028 років
A8: № п/п | B8: Назва напряму діяльнос-ті (пріори-тетні завдання) | C8: Перелік заходів програми | D8: Строк, роки | E8: Виконавці | F8: Джерела фінансування | G8: Орієнтовні обсяги потреби в фінансуванні (вартість), тис. грн, у тому числі: | N8: Очікуваний результат
G10: 2017 - 2023 роки | H10: 2024 рік | I10: 2025 рік | J10: 2026 рік | K10: 2027 рік | L10: 2028 рік | M10: Усього
A12: 1 | B12: 2 | C12: 3 | D12: 4 | E12: 5 | F12: 6 | G12: 7 | H12: 8 | I12: 9 | J12: 10 | K12: 11 | L12: 12 | M12: 13 | N12: 14
A13: 1 | B13: Утри-мання, ремонт, рекон-струкція жит-лового фонду | C13: 1.1. Капіталь-ний ремонт ліфтів | D13: 2017-2028 | E13: Департамент розвитку інф-раструктури міста виконкому Криворізької міської ради, одержувачі коштів | F13: Бюджет Криворізької міської територіальної громади | G13: 1092630 | H13: 150000 | I13: 25000 | J13: 35000 | K13: 40000 | L13: 45000 | M13: =SUM(G13:L13) -> 1387630 | N13: Гарантування умов безпечного та комфортного проживання насе-лення. Надання об'єднанням співвласників багатоквартир-ного будинку передбаченої чинним зако-нодавством Ук-раїни технічної та/ або іншої документації на житлові будинки. Безпечне користування ліфтами меш-канцями бага-токвартирних будинків, їх належна технічна
C14: 1.2. Експертне обстеження ліфтів | D14: 2017-2024 | F14: =F13 -> Бюджет Криворізької міської територіальної громади | G14: 890 | H14: 150 | I14: 0 | J14: 0 | K14: 0 | L14: 0 | M14: =SUM(G14:L14) -> 1040
C15: 1.3. Капіталь-ний, поточний ремонт, утримання та реконструкція житлового фонду | D15: 2017-2028 | F15: =F13 -> Бюджет Криворізької міської територіальної громади | G15: 328300 | H15: 50000 | I15: 50000 | J15: 50000 | K15: 50000 | L15: 50000 | M15: 578300
D16: 2017-2023 | F16: Власні надхо-дження | G16: 721.5 | H16: 0 | I16: 0 | J16: 0 | K16: 0 | L16: 0 | M16: 721.5
M17: Продовження додатка 2
A18: 1 | B18: 2 | C18: 3 | D18: 4 | E18: 5 | F18: 6 | G18: 7 | H18: 8 | I18: 9 | J18: 10 | K18: 11 | L18: 12 | M18: 12 | N18: 14
C19: 1.4. Охорона об'єктів житлового фонду | D19: 2017-2022 | F19: =F15 -> Бюджет Криворізької міської територіальної громади | G19: 9280 | H19: 0 | I19: 0 | J19: 0 | K19: 0 | L19: 0 | M19: =SUM(G19:L19) -> 9280 | N19: експлуатація та безперебійна ро-бота. Продовження терміну експлуатації ліфтів. Заміна табличок з назвами топонімів на будинках на нові
C20: 1.5. Заміна адресних вивісок | D20: 2017-2028 | F20: =F19 -> Бюджет Криворізької міської територіальної громади | G20: 3900 | H20: =500+200 -> 700 | I20: =700 -> 700 | J20: 700 | K20: 700 | L20: 700 | M20: =SUM(G20:L20) -> 7400
C21: 1.6. Заходи з виконання доручень виборців депутатами Дніпро-петровської обласної ради | D21: 2017-2019 | F21: Субвенція з обласного бюджету бюджетам міст, районів та об’єднанням територіаль-них громад на виконання доручень виборців депутатами обласної ради | G21: 7290 | H21: * | I21: * | J21: * | K21: * | L21: * | M21: 7290
F22: =F26 -> Бюджет Криворізької міської територіальної громади | G22: 6000 | H22: 0 | I22: 0 | J22: 0 | K22: 0 | L22: 0 | M22: 6000
C23: 1.7. Фінансу-вання пере-можців обласного конкурсу мікропроєктів з енергоефек-тивності та енергозбере- | D23: 2017-2019 | F23: Субвенція з обласного бюджету до місцевих бюджетів на фінансування переможців обласного конкурсу мік- | G23: 749.17 | H23: * | I23: * | J23: * | K23: * | L23: * | M23: 749.17 | N23: Підвищення рівня надання населенню житлово-кому-нальних послуг відповідно до вимог національних стандартів,
C24: ження серед органів самоорганізації населення й ОСББ | F24: ропроєктів з енергоефек-тивності та енерго-збереження серед органів самоорга-нізації населення та ОСББ | N24: гармонізованих з міжнародними або регіональними
C25: 1.8. Послуги з приєднання електроуста-новок до електричних мереж | D25: 2017 | F25: =F19 -> Бюджет Криворізької міської територіальної громади | G25: 120 | H25: 0 | I25: 0 | J25: 0 | K25: 0 | L25: 0 | M25: =SUM(G25:L25) -> 120
C26: 1.9. Створення належних умов для проживання внутрішньо-переміщених осіб у гурто-житках міста | D26: 2021 | F26: =F25 -> Бюджет Криворізької міської територіальної громади | G26: 272.15 | H26: 0 | I26: 0 | J26: 0 | K26: 0 | L26: 0 | M26: =SUM(G26:L26) -> 272.15
C27: 1.10. Заходи (ремонтні роботи) з усунення аварій у житловому фонді | D27: 2022-2028 | E27: Одержувачі коштів | F27: =F26 -> Бюджет Криворізької міської територіальної громади | G27: 3500 | H27: 3000 | I27: 3000 | J27: 3000 | K27: 3000 | L27: 3000 | M27: 18500
A28: Усього | F28: =F26 -> Бюджет Криворізької міської територіальної громади | G28: 1444892.15 | H28: =H27+H26+H25+H22+H20+H19+H15+H14+H13 -> 203850 | I28: =I27+I26+I25+I22+I20+I19+I15+I14+I13 -> 78700 | J28: =J27+J26+J25+J22+J20+J19+J15+J14+J13 -> 88700 | K28: =K27+K26+K25+K22+K20+K19+K15+K14+K13 -> 93700 | L28: =L27+L26+L25+L22+L20+L19+L15+L14+L13 -> 98700 | M28: 2008542.15
F29: Власні надходження | G29: 721.5 | H29: 0 | I29: 0 | J29: 0 | K29: 0 | L29: 0 | M29: 721.5
F30: Субвенція з обласного бюджету бюджетам міст, районів та об’єднанням територіаль-них громад на виконання доручень виборців депутатами обласної ради | G30: 7290 | H30: =H21 -> * | I30: =I21 -> * | J30: =J21 -> * | K30: =K21 -> * | L30: * | M30: =SUM(G30:L30) -> 7290
F31: Субвенція з обласного бюджету до місцевих бюджетів на фінансування переможців обласного конкурсу мікропроєктів з енергоефек- тивності та енерго-збереження серед органів самоорганіза-ції населення та ОСББ | G31: 749.17 | H31: * | I31: * | J31: * | K31: * | L31: * | M31: =SUM(G31:L33) -> 749.17
A34: 2 | B34: Комуналь-не майно | C34: 2.1. Оформлення висновка спеціалізованої організації про можливість (неможливість) подальшої | D34: 2017-2028 | E34: Департамент розвитку інф-раструктури міста виконкому Криворізької міської ради | F34: =F26 -> Бюджет Криворізької міської територіальної громади | G34: 621.5 | H34: 150 | I34: =5+55 -> 60 | J34: 68 | K34: 75 | L34: 80 | M34: =SUM(G34:L34) -> 1054.5 | N34: Реалізація заходів з упорядкування об҆єктів, що перебувають на балансовому обліку департаменту
C35: експлуатації основних засобів, інших необоротних матеріальних активів, проведення експертиз | N35: розвитку інфаструктури міста виконкому Криворізької міської ради. Забезпечення діяльності департаменту розвитку інфаструктури міста виконкому Криворізької міської ради в межах повноважень
C36: 2.2. Інвентари-зація, технічна інвентаризація, оцінка майна, технічне обстеження об’єктів нерухомого майна та об’єктів (елементів) благоустрою з виготовленням технічного паспорта та технічного висновку, оформлення довідок на об’єкти нерухомго майна | D36: 2017-2028 | F36: =F34 -> Бюджет Криворізької міської територіальної громади | G36: 3886.66 | H36: 1200 | I36: 300 | J36: 300 | K36: 300 | L36: 300 | M36: =SUM(G36:L37) -> 6286.66
C38: 2.3. Знесення (розбирання) об'єктів нерухомого майна | D38: 2017-2023 | F38: =F36 -> Бюджет Криворізької міської територіальної громади | G38: 12050 | H38: 0 | I38: 0 | J38: 0 | K38: 0 | L38: 0 | M38: =SUM(G38:L38) -> 12050
C39: 2.4. Придбання в комунальну власність житла для надання в тимчасове користування внутрішньо переміщеним особам та послуги з оформлення відповідних документів | D39: 2018 | F39: Субвенція з де-ржавного бю-джету місцевим бюджетам на здійснення за-ходів щодо під-тримки терито-рій, що зазнали негативного впливу внаслі-док збройного конфлікту на сході України | G39: 2000 | H39: 0 | I39: 0 | J39: 0 | K39: 0 | L39: 0 | M39: =SUM(G39:L39) -> 2000
D40: 2018 | F40: =F36 -> Бюджет Криворізької міської територіальної громади | G40: 2140 | H40: 0 | I40: 0 | J40: 0 | K40: 0 | L40: 0 | M40: =SUM(G40:L40) -> 2140
C41: 2.5. Сплата земельного податку | D41: 2017-2028 | F41: Власні надхо-дження | G41: 4880 | H41: 0 | I41: 0 | J41: 0 | K41: 0 | L41: 0 | M41: 4880
F42: =F40 -> Бюджет Криворізької міської територіальної громади | G42: 641.82 | H42: 188 | I42: 84 | J42: 94500 | K42: 100000 | L42: 110000 | M42: 305413.82
C43: 2.6. Витрати, пов'язані із судовими процесами,ого-лошеннями за судовими справами, послугами: з питань патентування та авторського | D43: 2017-2028 | F43: =F42 -> Бюджет Криворізької міської територіальної громади | G43: 2065 | H43: =1000+500 -> 1500 | I43: =5+200+76+2000 -> 2281 | J43: =6+270+85+2500 -> 2861 | K43: =7+290+92+3000 -> 3389 | L43: 4000 | M43: 16096
C44: права, юридичними, поштовими та з оформлення справ для архіву
C45: 2.7. Висвітлення діяльності департаменту розвитку інфра-структури міста виконкому Криворізької міської ради в медіа | D45: 2017-2024 | F45: =F43 -> Бюджет Криворізької міської територіальної громади | G45: 1202.9 | H45: 100 | I45: 0 | J45: 0 | K45: 0 | L45: 0 | M45: =SUM(G45:L46) -> 1302.9
C47: 2.8. Реєстрація та перереєстра-ція спеціальної техніки, автотранспорту (узяття на облік та зняття з нього) | D47: 2017-2023 | F47: =F45 -> Бюджет Криворізької міської територіальної громади | G47: 141 | H47: 0 | I47: 0 | J47: 0 | K47: 0 | L47: 0 | M47: =SUM(G47:L47) -> 141
C48: 2.9. Послуги з розробки про-ектів землеуст-рою щодо від-ведення земельних ділянок у постійне користування під об´єкти нерухомості | D48: 2019-2024 | F48: Бюджет Криворізької міської територіальної громади | G48: 600 | H48: 400 | I48: 0 | J48: 0 | K48: 0 | L48: 0 | M48: =SUM(G48:L48) -> 1000
C49: 2.10. Прид-бання техніки та обладнання, предметів довгостроко-вого користу-вання | D49: 2020 | F49: Бюджет Криворізької міської територіальної громади | G49: 16000.8 | H49: 0 | I49: 0 | J49: 0 | K49: 0 | L49: 0 | M49: =SUM(G49:L49) -> 16000.8
A50: Усього | F50: Бюджет Криворізької міської територіальної громади | G50: 39349.68 | H50: =SUM(H34:H49)-H39-H41 -> 3538 | I50: =SUM(I34:I49)-I39-I41 -> 2725 | J50: =SUM(J34:J49)-J39-J41 -> 97729 | K50: =SUM(K34:K49)-K39-K41 -> 103764 | L50: =L49+L48+L45+L47+L43+L42+L41+L40+L39+L38+L36+L34 -> 114380 | M50: =SUM(M34:M49)-M39-M41 -> 361485.68
F51: Власні надхо-дження | G51: 4880 | H51: =H41 -> 0 | I51: =I41 -> 0 | J51: =J41 -> 0 | K51: 0 | L51: 0 | M51: =SUM(G51:L51) -> 4880
F52: Субвенція з державного бюджету місцевим бюджетам на здійснення за- ходів щодо підтримки територій, що зазнали негативного впливу внаслідок збройного конфлікту на сході України | G52: 2000 | H52: =H39 -> 0 | I52: 0 | J52: =J39 -> 0 | K52: 0 | L52: 0 | M52: =M39 -> 2000
A54: 3 | B54: Санітар-на очистка міста | C54: 3.1. Оформлен-ня права корис-тування земе-льними ділян-ками під полі-гонами звалищ сміття міста | D54: 2017-2021 | E54: Департамент розвитку інф-раструктури міста виконкому Криворізької міської ради | F54: =F50 -> Бюджет Криворізької міської територіальної громади | G54: 2190 | H54: 0 | I54: 0 | J54: 0 | K54: 0 | L54: 0 | M54: =SUM(G54:L54) -> 2190 | N54: Покращення еко-логічної ситуації в місті (санітарне очищення)
C55: 3.2. Розробка проєктно-кошторисної документації на рекультивацію полігону для складування твердих побутових відходів | D55: 2022 | F55: Бюджет Криворізької міської територіальної громади | G55: 1000 | H55: 0 | I55: 0 | J55: 0 | K55: 0 | L55: 0 | M55: =SUM(G55:L55) -> 1000
C56: 3.3. Ліквідація стихійних звалищ | D56: 2017-2022 | F56: =F54 -> Бюджет Криворізької міської територіальної громади | G56: 6251 | H56: 0 | I56: 0 | J56: 0 | K56: 0 | L56: 0 | M56: 6251
C57: 3.4.Придбання та ремонт кон-тейнерних систем для розміщення контейнерів для збору твердих побутових відходів | D57: 2018-2028 | F57: =F56 -> Бюджет Криворізької міської територіальної громади | G57: 66360 | H57: 13000 | I57: =9000+2500 -> 11500 | J57: =9500+2900 -> 12400 | K57: =9500+3000 -> 12500 | L57: 13000 | M57: =SUM(G57:L57) -> 128760
C58: 3.5. Утримання, поточний, капітальний ремонти контейнерних майданчиків | D58: 2020-2022 | F58: =F57 -> Бюджет Криворізької міської територіальної громади | G58: 50000 | H58: 0 | I58: 0 | J58: 0 | K58: 0 | L58: 0 | M58: =SUM(G58:L58) -> 50000
C59: 3.6. Коригу-вання схеми санітарної очистки міста | D59: 2021-2023 | F59: Бюджет Криворізької міської територіальної громади | G59: 940 | H59: 0 | I59: 0 | J59: 0 | K59: 0 | L59: 0 | M59: =SUM(G59:L59) -> 940
A60: Усього | F60: Бюджет Криворізької міської територіальної громади | G60: 126741 | H60: =H59+H58+H57+H56+H55+H54 -> 13000 | I60: =I59+I58+I57+I56+I55+I54 -> 11500 | J60: =J59+J58+J57+J56+J55+J54 -> 12400 | K60: =K59+K58+K57+K56+K55+K54 -> 12500 | L60: =L59+L58+L57+L56+L55 -> 13000 | M60: =SUM(M54:M59) -> 189141
A61: 4 | B61: Підтрим-ка кому-нальних підпри-ємств - надавачів послуг з теплопос-тачання, водопо-стачання та водовідве-дення | C61: 4.1. Фінансова підтримка | D61: 2017-2021 | E61: Департамент розвитку інф-раструктури міста виконкому Криворізької міської ради - головний роз-порядник коштів, Ко-мунальне підприємство теплових мереж «Криворіжте-пломережа» - одержувач коштів | F61: Бюджет Криворізької міської територіальної громади | G61: 248166.29 | H61: 0 | I61: 0 | J61: 0 | K61: 0 | L61: 0 | M61: =SUM(G61:L61) -> 248166.29 | N61: Економія теплової та електричної енергії, природного газу, покращення якості виконання робіт на системі тепло- постачання. Покращення якості надання послуг з водопостачання та водовідведення. Зниження травма-тизму населення, запобігання нещасним випадкам. Економія енергоресурсів
C62: 4.2 Погашення заборгованості за теплову енергію | D62: 2022 | F62: Бюджет Криворізької міської територіальної громади | G62: 75000 | H62: 0 | I62: 0 | J62: 0 | K62: 0 | L62: 0 | M62: =SUM(G62:L62) -> 75000
C63: 4.3. Придбання теплоізо-ляційних матеріалів | D63: 2017-2023 | F63: =F61 -> Бюджет Криворізької міської територіальної громади | G63: 24000 | H63: 0 | I63: 0 | J63: 0 | K63: 0 | L63: 0 | M63: 24000
C64: 4.4. Придбання блочних автоматизова-них пальників з частотними перетворюва-чами | D64: 2017-2019 | F64: Бюджет Криворізької міської територіальної громади | G64: 16000 | H64: 0 | I64: 0 | J64: 0 | K64: 0 | L64: 0 | M64: =SUM(G64:L65) -> 16000
C66: 4.5. Реконст-рукція схеми теплопоста-чання | D66: 2017 | F66: =F64 -> Бюджет Криворізької міської територіальної громади | G66: 1500 | H66: 0 | I66: 0 | J66: 0 | K66: 0 | L66: 0 | M66: =SUM(G66:L66) -> 1500
C67: 4.6. Демонтаж димової труби котельні «Прорізна, 87» | D67: 2017 | F67: Бюджет Криворізької міської територіальної громади | G67: 1500 | H67: 0 | I67: 0 | J67: 0 | K67: 0 | L67: 0 | M67: =SUM(G67:L67) -> 1500
C68: 4.7. Поповнення статутного капіталу на придбання спецтехніки, обладнання та предметів довгостроко-вого користування | D68: 2017-2027 | F68: Бюджет Криворізької міської територіальної громади | G68: 123530 | H68: 0 | I68: =30000 -> 30000 | J68: 35000 | K68: 40000 | L68: 45000 | M68: =SUM(G68:L68) -> 273530
C69: 4.8. Оснащення вузлами комерційного обліку теплової енергії житлових будинків, приєднаних до зовнішніх інженерних мереж | D69: 2018-2019 | F69: Бюджет Криворізької міської територіальної громади | G69: 30987.19 | H69: 0 | I69: 0 | J69: 0 | K69: 0 | L69: 0 | M69: =SUM(G69:L70) -> 30987.19
C71: 4.9. Поповнення статутного капіталу на ви-конання робіт з будівництва, реконструкції, капітального ремонту коте-лень та тепло-вих мереж | D71: 2019-2023 | F71: =F67 -> Бюджет Криворізької міської територіальної громади | G71: 81000 | H71: 0 | I71: 0 | J71: 0 | K71: 0 | L71: 0 | M71: =SUM(G71:L71) -> 81000
C72: 4.10. Придбан-ня матеріалів, обладнання (устаткування) для виконання робіт з буді-вництва, реко-нструкції, капі-тального та поточного ре-монту котелень і теплових мереж | D72: 2022-2028 | F72: =F68 -> Бюджет Криворізької міської територіальної громади | G72: 20000 | H72: 50000 | I72: 50000 | J72: 50000 | K72: 50000 | L72: 70000 | M72: =SUM(G72:L72) -> 290000
C73: 4.11. Заходи щодо врегулю-вання проблем-них питань в опалювальний період 2021/2022 років, пов'язані з різким зроста-нням цін на енергоресурси | D73: 2021-2022 | F73: =F72 -> Бюджет Криворізької міської територіальної громади | G73: 47500 | H73: 0 | I73: 0 | J73: 0 | K73: 0 | L73: 0 | M73: =SUM(G73:L73) -> 47500 | W73: з
C74: 4.12. Оплата праці та енергоносіїв (електроенергія, вода тощо) | D74: 2022-2026 | F74: =F73 -> Бюджет Криворізької міської територіальної громади | G74: 148000 | H74: 46000 | I74: 60000 | J74: 62000 | K74: 65000 | L74: 75000 | M74: =SUM(G74:L74) -> 456000
C75: 4.13.Придбання обладнання та предметів довгостроко-вого користу-вання (транс-портних засо-бів, спецтехніки та спеціа-лізованої техні-ки, устаткуван-ня, обладнання, пристроїв тощо) для здійснення заходів з енергозбе-реження | D75: 2022-2028 | F75: =F74 -> Бюджет Криворізької міської територіальної громади | G75: 34860 | H75: 0 | I75: 0 | J75: 0 | K75: 0 | L75: 0 | M75: =SUM(G75:L76) -> 34860
C77: 4.14. Придбан-ня обладнання та предметів довгостроко-вого користу-вання (транс-портних засо-бів, спецтехніки та спеціа-лізованої техні-ки, устаткуван-ня, обладнання, пристроїв тощо) | D77: 2022 | F77: =F75 -> Бюджет Криворізької міської територіальної громади | G77: 17600 | H77: 0 | I77: 0 | J77: 0 | K77: 0 | L77: 0 | M77: =SUM(G77:L77) -> 17600
C78: 4.15. Заходи, у тому числі з енергозбереже-ння, на об'єктах теплопостачан-ня комунальної власності міста Кривого Рогу в умовах збройної агресії Російської Федерації проти України | D78: 2023-2028 | F78: Субвенція з обласного бю-джету для здій-снення заходів, в тому числі з енергозбереже-ння, на об'єктах теплопостачан-ня комунальної власності міста Кривого Рогу в умовах збройної агре-сії Російської Федерації проти України | G78: 300000 | H78: =300000 -> 300000 | I78: 348878.3 | J78: 400000 | K78: 0 | L78: 0 | M78: =SUM(G78:L78) -> 1348878.3
C79: 4.16. Заходи з енергозбере-ження (вико-нання робіт з будівництва, реконструкції, капітального ремонту коте-лень та інжененрних мереж) | D79: 2024 - 2028 | F79: Бюджет Криворізької міської територіальної громади | G79: 0 | H79: 295000 | I79: 300000 | J79: 200000 | K79: 250000 | L79: 300000 | M79: =SUM(G79:L79) -> 1345000
C80: 4.17. Оплата праці та енергоносіїв (електроенергія, вода тощо) | D80: 2017-2028 | E80: Департамент розвитку інф-раструктури міста виконкому Криворізької міської ради - головний роз-порядник коштів, Комунальне | F80: =F72 -> Бюджет Криворізької міської територіальної громади | G80: 373000 | H80: =20000+7000+50000 -> 77000 | I80: 80000 | J80: 85000 | K80: 90000 | L80: 95000 | M80: =SUM(G80:L80) -> 800000 | N80: Покращення якості надання послуг з водо-постачання та водовідведення. Зниження тра-вматизму насе-лення, запобі-гання нещасним випадкам. Еко-номія ресурсів
C81: 4.18. Придбан-ня кришок люків | D81: 2017-2028 | F81: =F72 -> Бюджет Криворізької міської територіальної громади | G81: 9652.5 | H81: 600 | I81: 625 | J81: 600 | K81: 650 | L81: 700 | M81: 12827.5
C82: 4.19. Послуги щодо фінан-сового лізингу на придбання спецтехніки | D82: 2017-2019 | E82: підприємство «Кри-вбасводо-канал» - одержувач коштів | F82: =F81 -> Бюджет Криворізької міської територіальної громади | G82: 72902.96 | H82: 0 | I82: 0 | J82: 0 | K82: 0 | L82: 0 | M82: =SUM(G82:L82) -> 72902.96
C83: 4.20. Капіталь-ний ремонт, будівництво, реконструкція мереж водо-постачання та водовідведення | D83: 2017-2028 | F83: =F82 -> Бюджет Криворізької міської територіальної громади | G83: 132911.57 | H83: 0 | I83: =25000+45000 -> 70000 | J83: 70000 | K83: 70000 | L83: 90000 | M83: =SUM(G83:L83) -> 432911.57
C84: 4.21. Прид-бання мате-ріалів, облад-нання (уста-ткування) для виконання ка-пітальних ре-монтів, будів-ництва, реконс-трукції мереж і споруд водопостачання та водо-відведення | D84: 2017-2028 | F84: =F83 -> Бюджет Криворізької міської територіальної громади | G84: 57217.35 | H84: 400 | I84: 5000 | J84: 6000 | K84: 7000 | L84: 8000 | M84: 83617.35
C85: 4.22. Попов-нення статут-ного капіталу на придбання спецтехніки, обладнання та предметів до-вгострокового користування | D85: 2017-2028 | F85: Бюджет Криво-різької міської територіальної громади | G85: 166143.84 | H85: =15000+5380+10000 -> 30380 | I85: 35000 | J85: 35000 | K85: 35000 | L85: 35000 | M85: 336523.84
C86: 4.23. Послуги з обслуговування підвищува-льних насосів холодної води | D86: 2017 | F86: Бюджет Криво-різької міської територіальної громади | G86: 2340 | H86: 0 | I86: 0 | J86: 0 | K86: 0 | L86: 0 | M86: 2340
C87: 4.24. Придбан-ня пожежних гідрантів | D87: 2020-2028 | F87: =F85 -> Бюджет Криво-різької міської територіальної громади | G87: 3702.5 | H87: =1200+1200 -> 2400 | I87: 2250 | J87: 2500 | K87: 2750 | L87: 3000 | M87: 16602.5
C88: 4.25.Придбання обладнання та предметів довгостроко-вого користу-вання (транс-портних засо-бів, спецтехніки та спеціа-лізованої техні-ки, устаткуван-ня, обладнання, пристроїв тощо) | D88: 2023-2028 | F88: Бюджет Криво-різької міської територіальної громади | G88: 83000 | H88: 2000 | I88: 0 | J88: 0 | K88: 0 | L88: 0 | M88: 85000
C89: 4.26. Заходи із забезпечення міста Кривого Рогу водо-постачанням в умовах зброй-ної агресії Російської Федерації проти України | D89: 2023 | E89: Департамент розвитку інф-раструктури міста виконко-му Криворізь-кої міської ради - голов-ний розпоряд-ник коштів, Комунальне підприємство «Кривбасводо-канал» - | F89: Субвенція з обласного бю-джету до бю-джету Криворі-зької міської територіальної громади для здійснення за-ходів із забез-печення міста Кривого Рогу водопостачан-ням в умовах | G89: 100000 | H89: 0 | I89: 0 | J89: 0 | K89: 0 | L89: 0 | M89: =SUM(G89:L90) -> 100000 | N89: Недопущення зниження експлуатаційного рівня води в джерелі питного водопостачання міста за рахунок упровадження альтернативної моделі подачі (перекачування) обсягу води для поповнення
E90: одержувач коштів | F90: збройної агре-сії Російської Федерації проти України | N90: Південного водосховища
F91: Бюджет Криворізької міської територіальної громади | G91: 80900 | H91: 0 | I91: 0 | J91: 0 | K91: 0 | L91: 0 | M91: =SUM(G91:L92) -> 80900
A93: Усього | F93: =F87 -> Бюджет Криво-різької міської територіальної громади | G93: 1851414.2 | H93: =SUM(H61:H88)-H78+H91 -> 503780 | I93: =SUM(I61:I88)-I78+I91 -> 632875 | J93: =SUM(J61:J88)-J78+J91 -> 546100 | K93: =SUM(K61:K88)-K78+K91 -> 610400 | L93: =L91+L89+L88+L87+L86+L85+L84+L83+L82+L81+L80+L79+L78+L77+L75+L74+L73+L72+L71+L69+L68+L67+L66+L65+L64+L63+L62+L61 -> 721700 | M93: =SUM(M61:M88)-M78+M91 -> 4866269.2
F94: Субвенція з обласного бю-джету для здійснення заходів, у тому числі з енерго-збереження, на об'єктах теплопоста-чання комуна-льної власності міста Кривого Рогу в умовах збройної агре-сії Російської Федерації проти України | G94: 300000 | H94: 300000 | I94: 348783.3 | J94: 0 | K94: 0 | L94: 0 | M94: =SUM(G94:L94) -> 948783.3
F96: Субвенція з обласного бю-джету до бю-джету Криворі-зької міської територіальної громади для | G96: 100000 | H96: 0 | I96: 0 | J96: 0 | K96: 0 | L96: 0 | M96: =M89 -> 100000
F97: здійснення за-ходів із забез-печення міста Кривого Рогу водопостачан-ням в умовах збройної агре-сії Російської Федерації проти України
A98: 5 | B98: Заходи, пов’язані з економіч-ною дія-льністю Комуналь-ного зак-ладу «Дитячий оздоров-чий табір «Перлина Кри-воріжжя» Криворізь-кої міської ради | C98: 5.1. Поповнення статутного капіталу на придбання обладнання і предметів довгостроко-вого користування | D98: 2017 | E98: Департамент розвитку інф-раструктури міста виконкому Криворізької міської ради - головний роз-порядник коштів, Ко-мунальний заклад «Ди- тячий оздо-ровчий табір «Перлина Кри-воріжжя» Криворізької міської ради - одержувач коштів | F98: =F93 -> Бюджет Криво-різької міської територіальної громади | G98: 174.9 | H98: 0 | I98: 0 | J98: 0 | K98: 0 | L98: 0 | M98: =SUM(G98:L98) -> 174.9 | N98: Забезпечення умов для оздоровлення дітей та стабільної роботи Комунального закладу «Дитячий оздоровчий табір «Перлина Криворіжжя» Криворізької міської ради
C99: 5.2. Інші заходи, пов'язані з економічною діяльністю закладу | D99: 2017, 2018 | F99: =F98 -> Бюджет Криво-різької міської територіальної громади | G99: 625.1 | H99: 0 | I99: 0 | J99: 0 | K99: 0 | L99: 0 | M99: =SUM(G99:L101) -> 625.1
A102: Усього | F102: =F99 -> Бюджет Криво-різької міської територіальної громади | G102: 800 | H102: =H98+H99 -> 0 | I102: =I98+I99 -> 0 | J102: =J98+J99 -> 0 | K102: =K98+K99 -> 0 | L102: 0 | M102: =SUM(G102:L102) -> 800
A103: 6 | B103: Заходи, пов’язані з економіч-ною дія-льністю Комуналь-ного під-приємст-ва «Кривбас-теплоенер-го» Криворізь-кої міської ради | C103: 6.1. Заходи, пов´язані із за-лученням кре-дитних ресурсів на впрова-дження проєк-тів з енерго-ефективності | D103: 2017-2019 | E103: Департамент розвитку інф-раструктури міста виконкому Криворізької міської ради -головний розпорядник коштів, Комунальне підприємство «Кривбастеп-лоенерго» Криворізької міської ради - одержувач коштів | F103: =F102 -> Бюджет Криво-різької міської територіальної громади | G103: 3000 | H103: 0 | I103: 0 | J103: 0 | K103: 0 | L103: 0 | M103: =SUM(G103:L104) -> 3000 | N103: Реалізація програм пріоритетних інвестицій для підвищення енергоефектив-ності грома-дських будівель
C105: 6.2. Поповнення статутного капіталу на придбання обладнання і предметів дов-гострокового користування, виконання робіт з будівництва, капітального ремонту, реконструкції | D105: 2017-2025 | F105: =F103 -> Бюджет Криво-різької міської територіальної громади | G105: 269 | H105: 1500 | I105: =28 -> 28 | J105: 0 | K105: 0 | L105: 0 | M105: =SUM(G105:L105) -> 1797
C106: 6.3. Інші заходи, пов'язані з економічною діяльністю підприємства | F106: =F105 -> Бюджет Криво-різької міської територіальної громади | G106: 3414 | H106: 0 | I106: 0 | J106: 0 | K106: 0 | L106: 0 | M106: =SUM(G106:L106) -> 3414
C107: 6.4. Фінансова підтримка | D107: 2020, 2021 | F107: =F105 -> Бюджет Криво-різької міської територіальної громади | G107: 2980 | H107: 0 | I107: 0 | J107: 0 | K107: 0 | L107: 0 | M107: =SUM(G107:L107) -> 2980
C108: 6.5. Заходи з енергозбере-ження (вико-нання робіт з будівництва, реконструкції, капітального ремонту коте-лень та тепло-вих мереж) | D108: 2023 | F108: Бюджет Криворізької міської територіальної громади | G108: 4700 | H108: 0 | I108: 5000 | J108: 0 | K108: 0 | L108: 10000 | M108: =SUM(G108:L108) -> 19700 | N108: Забезпечення безперервної господарської діяльності підприємства
C109: 6.6. Погашення заборгованості за спожитий природний газ | D109: 2024 | F109: Бюджет Криворізької міської територіальної громади | G109: 0 | H109: 3753.14 | I109: 0 | J109: 0 | K109: 0 | L109: 0 | M109: 3753.14
A110: Усього | F110: =F108 -> Бюджет Криворізької міської територіальної громади | G110: 14363 | H110: =SUM(H103:H109) -> 5253.14 | I110: =SUM(I103:I109) -> 5028 | J110: =SUM(J103:J109) -> 0 | K110: =SUM(K103:K109) -> 0 | L110: 0 | M110: 24644.14
A111: 7 | B111: Заходи, пов’язані з економіч-ною дія-льністю Комуналь-ного під-приємст-ва «Сансер-віс» Криворізь-кої міської ради | C111: Заходи, пов'я-зані з реалі-зацією проєкту «Нове будівниц-тво комплексу з перероблення, знешкодження та складування твердих побутових відходів у Металургійно- му районі міста Кривого Рогу Дніпропет-ровської області» | D111: 2020-2022 | E111: Департамент розвитку інф-раструктури міста виконкому Криворізької міської ради, Комунальне підприємство «Сансервіс» Криворізької міської ради - одержувач коштів | F111: =F110 -> Бюджет Криворізької міської територіальної громади | G111: 10487.73 | H111: 0 | I111: 0 | J111: 0 | K111: 0 | L111: 0 | M111: =SUM(G111:L112) -> 10487.73
A113: 8 | B113: Заходи, пов'язані з попере-дженням і ліквіда-цією наслідків збройної агресії Російсь-кої Федерації | C113: Заходи, пов'язані з попереджен- ням і ліквіда-цією наслідків збройної агресії Російської Федерації | D113: 2023-2028 | E113: Департамент розвитку інф-раструктури міста виконкому Криворізької міської ради - головний розпорядник коштів, одержувачі коштів | F113: Бюджет Криворізької міської територіальної громади | G113: 60000 | H113: =90000+30000+80000 -> 200000 | I113: =90000+30000+80000 -> 200000 | J113: 200000 | K113: 200000 | L113: 200000 | M113: =SUM(G113:L113) -> 1060000
F114: Субвенція з бюджету Криворізької міської територіальної громади бюджетам районів у місті на ліквідацію наслідків збройної агресії Російської Федерацїї, пов’язаних з пошкодже-нням/знище-нням об’єктів житлового фонду | G114: 0 | H114: 0 | I114: 100000 | J114: 0 | K114: 0 | L114: 0 | M114: =G114+H114+I114+J114+K114+L114 -> 100000
A116: 9 | B116: Розвиток та утри-мання житлово-комуналь-ного господар-ства міста | C116: Заходи для забезпечення сталого розвитку та утримання житлово-комунального господарства міста | D116: 2023 | E116: Департамент розвитку інф-раструктури міста виконкому Криворізької міської ради Виконком Криворізької міської ради | M116: =SUM(G116:L116) -> 0
A117: 10 | B117: Заходи, пов’язані з енерго-збережен-ням міста | C117: Заходи, пов’язані з енергозбере-женням міста (розроблення схеми теплопостачання міста) | D117: 2024 | E117: Департамент розвитку інф-раструктури міста виконкому Криворізької міської ради | F117: Бюджет Криворізької міської територіальної громади | G117: 0 | H117: 5000 | I117: 2763.56 | J117: 0 | K117: 0 | L117: 0 | M117: =H117+I117+J117+K117+L117 -> 7763.56 | N117: Оптимізація системи теплопостачання. Зменшення споживання енергоресурсів. Забезпечення оптимального поєднання централізованої системи теплопостачання
A118: Усього за Програмою, у тому числі: | G118: 3982939.26 | H118: =H119+H120+H126+H124+H128+H130 -> 1234421.14 | I118: =I119+I120+I126+I124+I128+I130 -> 1382374.86 | J118: =J119+J120+J126+J124+J128+J130 -> 944929 | K118: =K119+K120+K126+K124+K128+K130 -> 1020364 | L118: =L119+L120+L126+L124+L128+L130 -> 1147780 | M118: =M119+M120+M122+M124+M128+M130 -> 9602808.26
F119: Бюджет Криворізької міської територіальної громади | G119: 3558047.76 | H119: =H28+H50+H60+H93+H102+H110+H111+H113+H116+H117 -> 934421.14 | I119: 933591.56 | J119: 944929 | K119: 1020364 | L119: 1147780 | M119: 8529133.46
F120: Власні надходження | G120: 15601.5 | H120: =H29+H51+H116 -> 0 | I120: =I29+I51+I116 -> 0 | J120: =J29+J51+J116 -> 0 | K120: =K29+K51+K116 -> 0 | L120: =L29+L51+L116 -> 0 | M120: =SUM(G120:L120) -> 15601.5
F121: Субвенція з обласного бюджету бюджетам міст, районів та об’єдна-нням
F122: територіаль-них громад на виконання доручень виборців депутатами обласної ради | G122: 7290 | H122: =H30 -> * | I122: =I30 -> * | J122: =J30 -> * | K122: * | L122: * | M122: =SUM(G122:L123) -> 7290
F124: Субвенція з державного бюджету місцевим бюджетам на здійснення заходів щодо підтримки територій, що зазнали негативного впливу внаслідок збройного конфлікту на сході України | G124: 2000 | H124: 0 | I124: 0 | J124: 0 | K124: 0 | L124: 0 | M124: =SUM(G124:L125) -> 2000
F126: Субвенція з обласного бюджету до місцевих бюджетів на фінансування переможців обласного конкурсу мік-ропроєктів з енергоефек-тивності та енергозбере-ження серед органів самоорганіза-ції населення та ОСББ | G126: 0 | H126: 0 | I126: 0 | J126: 0 | K126: 0 | L126: 0 | M126: =SUM(G126:L127) -> 0
F128: Субвенція з обласного бюджету для здійснення заходів, у тому числі з енергозбере-ження, на об'єк-тах теплопоста-чання комунальної власності міста Кривого Рогу в умовах збройної агре-сії Російської Федерації проти України | G128: 300000 | H128: =H78 -> 300000 | I128: 348783.3 | J128: 0 | K128: 0 | L128: 0 | M128: =SUM(G128:L129) -> 948783.3
F130: Субвенція з обласного бюджету до бюджету Криворізької міської територіальної громади для здійснення заходів із забезпечення міста Кривого Рогу водопостачан-ням в умовах збройної агре-сії Російської Федерації проти України | G130: 0 | H130: 0 | I130: 100000 | J130: 0 | K130: 0 | L130: 0 | M130: 100000
A133: В.о керуючої справами виконкому -
A134: заступник міського голови | H134: Надія ПОДОПЛЄЛОВА

Sheet Б-т 2025
A1: Показники видатків на 2025 -2027 роки за головним розпорядником департамент розвитку інфраструктури міста
P2: 19.06.2024
A3: № п/п | B3: КПКВКМБ | C3: Найменування | E3: Затверджено на 2024 рік | F3: План на 2024 рік з урахуванням змін станом на 01.10.2024 | G3: Касові видатки станом на 01.09.2024 | H3: Залишок бюджетних призначень до кінця року | I3: Прогноз на 2025 на рівні планових призначень 2024 року | J3: Примітка | K3: Проект на 2025 з урахуванням індексу цін виробника 111,1 % | L3: Проект на 2026 з урахуванням індексу цін виробника 112,4 % | M3: Проект на 2027 з урахуванням індексу цін виробника 107,8 % | N3: Примітка | O3: Прогноз на 2025 з урахуванням реальної потреби | P3: Примітка
A4: 1 | B4: 2 | C4: 3 | E4: 4 | F4: 5 | G4: 6 | H4: 5
C5: Усього за галуззю, у тому числі: | E5: =E6+E7 -> 1800035288 | F5: =F6+F7 -> 2494444395 | K5: 2123694627 | L5: 1708396700 | M5: 1765352500
C6: Загальний фонд усього | E6: =E16+E26+E38+E85+E110+E126+E152+E157+E114+E32+E159 -> 1496700170 | F6: 1766145084 | J6: 0 | K6: 1701192200 | L6: 1684822100 | M6: 1745661300 | O6: =O16+O26+O38+O85+O110+#REF!+O126+O152+O157+O114+O32 ->  | Q6: =N6-K6 -> -1701192200
C7: спеціальний фонд усього | E7: =E182+E191+E195+E204+E223+E233+E243+E246+E249+E185 -> 303335118 | F7: =F182+F191+F195+F204+F223+F233+F243+F246+F249+F185 -> 728299310.7 | G7: 69962106.14 | H7: 650823171.4 | I7: 508312257 | K7: 422502427 | L7: =L182+L191+L195+L204+L223+L233+L243+L246+M250+L185 -> 23574600 | M7: 19691200 | O7: =O182+O191+O195+O204+O223+O233+O243+#REF!+O246+O249 -> 
A8: Загальний фонд: | Q8: =1684822100 -> 1684822100 | R8: =1745661300 -> 1745661300
A9: 1213242 "Інші заходи у сфері соціального захисту і соціального забезпечення"
A10: 1. | B10: 1.1. | C10: Організація поховання одиноких громадян, осіб без певного місця проживання, осіб, від поховання яких відмовилися рідні, знайдених, невпізнаних трупів, у разі відсутності родичів. Одержувач коштів "Ритуал Сервіс Плюс" | D10: 2610 | E10: =E11+E12+E13+E14+E15 -> 2286893 | F10: =F11+F12+F13+F14+F15 -> 2286893 | G10: =G11+G12+G13+G14+G15 -> 1138664.37 | H10: =F10-G10 -> 1148228.63 | I10: =I11+I12+I13+I14+I15 -> 2286893 | J10: 2022 - 431 од. ; 2023 - 381 од. ; 2024 - 440 од., 2025 - 322 од. Факт на 16.06.2024 - 198 тіл | K10: =K11+K12+K13+K14+K15 -> 2300000 | L10: =L11+L12+L13+L14+L15 -> 2457693 | M10: =M11+M12+M13+M14+M15 -> 2569187 | O10: =O11+O12+O13+O14+O15 -> 2821134 | P10: 430 од. | Q10: =L6-Q8 -> 0 | R10: =264340+1888382+1449937+2015829+916219+687960+6212856+3771900+1220000 -> 18427423
C11: оплата праці | E11: 757958 | F11: =493133+305964 -> 799097 | G11: 503274.41 | H11: 295822.59 | I11: =522552+318171 -> 840723 | K11: =524683+318171 -> 842854 | L11: =524683+318171 -> 842854 | M11: =524683+318171 -> 842854 | O11: =526814+318171 -> 844985
C12: нарахування на оплату праці | E12: 166751 | F12: 175802 | G12: 110720.36 | H12: 65081.64 | I12: =184960 -> 184960 | K12: =185430 -> 185430 | L12: =185430 -> 185430 | M12: =185430 -> 185430 | O12: =185897 -> 185897
C13: Предмети, матеріали, обладнання та інвентар (предмети ритальної належності) | E13: 329442 | F13: 311917 | G13: 84202.8 | H13: 227714.2 | I13: 256674 | K13: 310522 | L13: 349027 | M13: 376251 | O13: 343720 | R13: =M6-R8 -> 0
C14: Продукти харчування (молоко) | E14: 5227 | F14: 5227 | G14: 2116.8 | H14: 3110.2 | I14: 3736 | K14: 4558 | L14: 5123 | M14: 5523 | O14: 5380
C15: Оплата послуг (крім комунальних) послуга з механізованого копання та закопування могил екскаватором, послуга з перевезення трун з тілами померлих окремої категорії громадян маловантажним автотранспортним засобом з робітниками ритуальних послуг, які здійснюють поховання померлих | E15: 1027515 | F15: 994850 | G15: =364500+73850 -> 438350 | H15: 556500 | I15: 1000800 | K15: =719019+501957-264340 -> 956636 | L15: 1075259 | M15: 1159129 | O15: 1441152
C16: Всього | E16: =E10 -> 2286893 | F16: =F10 -> 2286893 | G16: =G10 -> 1138664.37 | H16: 1148228.63 | I16: 2286893 | K16: 2300000 | L16: 2457693 | M16: 2569187 | O16: 2821134
A17: 1216011 "Експлуатація та технічне обслуговування житлового фонду"
A18: 2. | B18: 2.1. | C18: Заміна адресних вивісок в т.ч. | E18: =83000+67000 -> 150000 | F18: =F19+F20 -> 332293.6 | G18: =G19+G20 -> 113493.6 | H18: =F18-G18 -> 218800 | I18: 0 | K18: =K19+K20 -> 500000 | L18: =L19+L20 -> 0 | M18: =M19+M20 -> 0 | O18: 0
B19: 2.1.1. | C19: Придбання адресних вивісок | D19: 2210 | E19: 67000 | F19: 113493.6 | G19: 113493.6 | H19: 0 | I19: 0 | K19: 200000 | L19: 0 | M19: 0 | O19: 0
B20: 2.1.2. | C20: Встановлення адресних вивісок | D20: 2240 | E20: 83000 | F20: =299200-80400 -> 218800 | G20: 0 | H20: 218800 | I20: 0 | K20: 300000 | L20: 0 | M20: 0 | O20: 0
B21: 2.2 | C21: Поточний ремонт конструктивних елементів (укосів) об'єктів житлового фонду, пов'язаний з ліквідацією наслідків збройної агресії Російської Федерації проти України (одержувачі - ОСББ, управителі) УКОСИ | D21: 2610 | E21: 23500000 | F21: 19549467.38 | G21: =#REF!+#REF!+#REF!+#REF!+#REF!+#REF!+#REF!+#REF!+#REF!+#REF!+#REF!+#REF!+#REF!+#REF! ->  | I21: =#REF!+#REF!+#REF!+#REF!+#REF!+#REF!+#REF!+#REF!+#REF!+#REF!+#REF!+#REF!+#REF!+#REF! ->  | K21: 20000000 | L21: 0 | M21: 0 | O21: =#REF!+#REF!+#REF!+#REF!+#REF!+#REF!+#REF!+#REF!+#REF!+#REF!+#REF!+#REF!+#REF!+#REF! -> 
B22: 2.3 | C22: Заходи (ремонтні роботи) з усунення аварій в житловому фонді (Одержувач ТОВ «Сітісервіс-КР», ТОВ "Уют") | D22: 2610 | E22: 0 | F22: 862947.19 | G22: =#REF!+#REF! ->  | I22: =#REF!+#REF! ->  | K22: 0 | L22: 0 | M22: 0 | O22: =#REF!+#REF! -> 
B23: 2.4 | C23: Заходи (ремонтні роботи) з усунення аварій в житловому фонді, пов'язаних з пов'язаних з ліквідацією наслідків збройної агресії Російської Федерації проти України ЗАМІНА ВІКОН, РЕМОНТ ПОКРІВЛІ | D23: 2610 | E23: 0 | F23: 21378632.46 | G23: =#REF!+#REF!+#REF!+#REF!+#REF!+#REF!+#REF!+#REF!+#REF!+#REF!+#REF!+#REF!+#REF! ->  | I23: =#REF!+#REF!+#REF!+#REF!+#REF!+#REF!+#REF!+#REF!+#REF!+#REF! ->  | K23: 0 | L23: 0 | M23: 0 | O23: =#REF!+#REF!+#REF!+#REF!+#REF!+#REF!+#REF!+#REF!+#REF!+#REF! -> 
B24: 5 | C24: Обстеження об’єктів житлового фонду у зв’язку з пошкодженням внаслідок позапроектних впливів | E24: =E25 -> 0 | F24: =F25 -> 99000 | G24: 98826.58 | H24: 173.42 | I24: 0 | K24: 0 | L24: 0 | M24: 0 | O24: 0
B25: 5.1 | C25: ОСББ "Астра-6" (взрив газу по вул. 21-ї бригади Національної гвардії, буд.6. ) | D25: 2610 | F25: 99000 | G25: 98826.58 | H25: =F25-G25 -> 173.42 | I25: 0 | K25: 0 | O25: 0
C26: Всього | E26: =E18+E21+E22+E23+E24 -> 23650000 | F26: =F18+F21+F22+F23+F24 -> 42222340.63 | G26: =G18+G21+G22+G23+G24 ->  | H26: =H18+H21+H22+H23+H24 ->  | I26: =I18+I21+I22+I23+I24 ->  | K26: =K18+K21+K22+K23+K24 -> 20500000 | L26: =L18+L21+L22+L23+L24 -> 0 | M26: =M18+M21+M22+M23+M24 -> 0 | O26: =O18+O21+O22+O23+O24 -> 
A27: 1216012 "Забезпечення діяльності з виробництва, транспортування, постачання теплової енергії"
A28: 3 | B28: 3.1 | C28: Оплата енергоносіїв (електроенергія) (КПТМ "Криворіжтепломережа") | D28: 2610 | E28: 0 | F28: 20000000 | G28: 20000000 | H28: =F28-G28 -> 0 | I28: 20000000 | K28: =30000000-30000000 -> 0 | L28: 0 | M28: 0 | O28: 52200000
B29: 3.2 | C29: Оплата водопостачання та водовідведенн (КПТМ "Криворіжтепломережа") | D29: 2610 | E29: 0 | F29: 0 | G29: 0 | H29: =F29-G29 -> 0 | I29: 0 | K29: 0 | L29: 0 | M29: 0 | O29: 10000000
B30: 3.3 | C30: Погашення заборгованості за спожитий природний газ (КП «Кривбастеплоенерго» КМР) | D30: 2610 | E30: 0 | F30: 3753135 | G30: 3753134.23 | H30: =F30-G30 -> 0.77 | I30: 0 | K30: 0 | L30: 0 | M30: 0 | O30: 0
B31: 3.4 | C31: Придбання матеріалів для виконання ремонтів теплових мереж КПТМ "Криворіжтепломережа") | E31: 0 | F31: 0 | G31: 0 | H31: 0 | K31: 0 | L31: 0 | M31: 0
C32: Всього | E32: =E28+E30+E29 -> 0 | F32: =F28+F30+F29 -> 23753135 | G32: 23753134.23 | H32: 0.77 | I32: 20000000 | K32: =K28+K29+K30+K31 -> 0 | L32: =L28+L29+L30+L31 -> 0 | M32: =M28+M29+M30+M31 -> 0 | O32: 62200000
A33: 1216013 "Забезпечення діяльності водопровідно-каналізаційного господарства"
A34: 4. | B34: 4.1 | C34: Придбання пожежних гідрантів КП "Кривбасводоканал" | D34: 2610 | E34: 1125000 | F34: =1125000+1199754 -> 2324754 | G34: 1124754 | H34: =F34-G34 -> 1200000 | I34: 1251000 | J34: 2024 р - 70 од.; 2025 - 70 од. | K34: 1250000 | L34: =K34*1.124 -> 1405000 | M34: =L34*1.078 -> 1514590 | O34: 1251000 | P34: 2025 - 70 од.
B35: 4.2 | C35: Придбання кришки люків КП "Кривбасводоканал" | D35: 2610 | E35: 559806 | F35: =559806-27486 -> 532320 | G35: 532320 | H35: =F35-G35 -> 0 | I35: 622505 | J35: 2024 р - 308 од.; 2025 - 308 од. | K35: 622000 | L35: =K35*1.124 -> 699128 | M35: 753660 | O35: 622505 | P35: 2025 - 308 од.
B36: 4.3 | C36: Оплата енергоносіїв (електроенергія) КП "Кривбасводоканал" | D36: 2610 | E36: 0 | F36: =20000000+7000000 -> 27000000 | G36: 20000000 | H36: =F36-G36 -> 7000000 | I36: 6000000 | K36: 0 | L36: =30000000-30000000 -> 0 | M36: =30000000-30000000 -> 0 | O36: 20000000
B37: 4.4 | C37: Придбання насосних агрегатів | D37: 2610 | E37: 0 | F37: 1719051 | G37: 0 | H37: =F37-G37 -> 1719051 | K37: 0 | L37: 0 | M37: 0
C38: Всього по КП "Кривбасводоканал" | E38: =E34+E35+E36+E37 -> 1684806 | F38: =F34+F35+F36+F37 -> 31576125 | G38: =G34+G35+G36+G37 -> 21657074 | H38: =H34+H35+H36+H37 -> 9919051 | I38: =I34+I35+I36 -> 7873505 | K38: 1872000 | L38: 2104128 | M38: 2268250 | O38: 21873505
A39: КПКВК 1216030 "Організація благоустрою населених пунктів"
A40: 5 | B40: 5.1. | C40: Вуличне освітлення та зовнішні електромережі | E40: =E41+E42+E43+E44+E45+E46+E47 -> 137260000 | F40: =F41+F42+F43+F44+F45+F46+F47 -> 135591697.6 | G40: =G41+G42+G43+G44+G45+G46+G47 -> 76828350.4 | H40: =H41+H42+H43+H44+H45+H46+H47 -> 58763347.2 | I40: =I41+I42+I43+I44+I45+I46+I47 -> 136958800 | K40: =K41+K42+K43+K44+K45+K46+K47 -> 163545800 | L40: =L41+L42+L43+L44+L45+L46+L47 -> 183825479 | M40: =M41+M42+M43+M44+M45+M46+M47 -> 198163867 | O40: =O41+O42+O43+O44+O45+O46+O47 -> 203192386
B41: 5.1.1. | C41: Поточна електроенергія | D41: 2273 | E41: 63800000 | F41: 63800000 | G41: =8222380.62+4518630.4+4241397.38+3246570.99-5192.55+4420522.8+3217520.21 -> 27861829.85 | H41: =F41-G41 -> 35938170.15 | I41: 63800000 | J41: 5 586 371 кВт; | K41: 87140000 | L41: =K41*1.124 -> 97945360 | M41: 105585098 | O41: 115348586 | P41: 10 100 000 кВт (за умови, що тариф на електричну енергію буде становити 9,0 грн. з ПДВ + середній тариф на розподіл -2,420652 грн. з ПДВ)
B42: 5.1.2. | C42: Утримання мереж зовнішнього освітлення | D42: 2240 | E42: 53100000 | F42: 52900000 | G42: 36426958.8 | H42: =F42-G42 -> 16473041.2 | I42: 52900000 | J42: лампи - 9000 од., світильники - 6000од., кабель - 42 км | K42: =58771900-3771900 -> 55000000 | L42: =K42*1.124 -> 61820000 | M42: =L42*1.078 -> 66641960 | O42: 63480000 | P42: лампи - 10000 од., світильники - 6500од., кабель - 50 км | Q42: =F42*1.112 -> 58824800 | R42: =F42*1.111 -> 58771900
B43: 5.1.3. | C43: Поточний ремонт мереж зовнішнього освітлення | D43: 2240 | E43: 20000000 | F43: =20000000-1363738.4 -> 18636261.6 | G43: 12432351.6 | H43: 6203910 | I43: 20000000 | J43: світильники - 700од, опори - 60 од, кабель - 13км | K43: =22220000-1220000 -> 21000000 | L43: =K43*1.124 -> 23604000 | M43: =L43*1.078 -> 25445112 | O43: =24000000 -> 24000000 | P43: світильники - 900од, опори - 70 од, кабель - 16км
B44: 5.1.4. | C44: Ремонт засобів обліку електричної енергії | D44: 2240 | E44: 30000 | F44: 0 | G44: 0 | H44: 0 | I44: 0 | K44: 0 | L44: =K44*1.124 -> 0 | M44: =L44*1.078 -> 0 | O44: 0
B45: 5.1.5. | C45: Повірка, технічна перевірка засобів обліку електричної енергії | D45: 2240 | E45: 140000 | F45: 68000 | G45: 14774.15 | H45: 53225.85 | I45: 68800 | J45: 34 | K45: 68800 | L45: 77331 | M45: =83363 -> 83363 | O45: 68800 | P45: 34
B46: 5.1.6. | C46: Послуги з прийому, перевезення та подальшої утилізації небезпечних відходів (відпрацьовані лампи, що містять ртутне наповнення) | D46: 2240 | E46: 95000 | F46: 95000 | G46: 0 | H46: 95000 | I46: 95000 | J46: 6300 | K46: 95000 | L46: 106780 | M46: 115109 | O46: 95000 | P46: 6300
B47: 5.1.7. | C47: Придбання засобів обліку електричної енергії | D47: 2210 | E47: 95000 | F47: =95000-2564 -> 92436 | G47: 92436 | H47: 0 | I47: 95000 | J47: 22 | K47: =95000*1.111+136455 -> 242000 | L47: 272008 | M47: 293225 | O47: 200000 | P47: 45
B48: 5.2 | C48: Водопостачання та водовідведення на кладовищах міста | D48: 2272 | E48: 215418 | F48: 215418 | G48: =25555.2+22935.79+46181.34 -> 94672.33 | H48: 120745.67 | I48: 215408 | J48: Зменшення обсягів з 13 487,22 м3 до 7 320 м3 (планується підвищення тарифу з 15,972 грн до 29,424 грн) | K48: 396848 | L48: 446057 | M48: 480850 | O48: 396848 | P48: 18 кладовищ (2022 рік: план - 11988,6 м3, факт - 11531 м3; 2023 рік: план - 16184,6 м3, факт - 9684 м3; 2024 рік: план - 13487,22 м3)
B49: 5.3 | C49: Енергозабезпечення об'єктів (елементів) благоустрою (МАФ «В’їзний знак «Кривий Ріг» на в’їзді в місто з боку міста Кіровоград») | D49: 2273 | E49: 289000 | F49: 289000 | G49: 0 | H49: 289000 | I49: 0 | K49: =102670 -> 102670 | L49: 115401 | M49: 124402 | O49: 0
B50: 5.4 | C50: Поточний ремонт інших об'єктів (елементів) благоустрою | D50: 2240 | E50: 1075396 | F50: 650157.13 | G50: 0 | H50: 650157.13 | I50: 1000000 | K50: 100000 | L50: 112400 | M50: 121167 | O50: 1000000 | P50: поточний ремонт сонячного дерева, вїзного знаку, памятників, біотуалетів, лав
B51: 5.5 | C51: Утримання об'єктів (елементів) благоустрою (біотуалетів) | D51: 2240 | E51: 25000000 | F51: 24909963 | G51: 14857009.58 | H51: 10052953.42 | I51: 24632429 | J51: 86 раз (70 біотуалетів) кожні пять днів | K51: =26346197+3192487-3192487 -> 26346197 | L51: 29613125 | M51: 31922949 | O51: 26346197 | P51: 92 рази (70 біотуалетів) кожні чотири дні
B52: 5.6 | C52: Утримання кладовищ | D52: 2240 | E52: 38568688 | F52: =38568688+2500000 -> 41068688 | G52: 28475610.08 | H52: 12593077.92 | I52: 38568688 | J52: 37 од. (зменшення обємів: - перенесення сміття з ділянок поховань - на 800 м3 (2024 рік - 5300 м3); - прибирання 81 вбиральні - на 2 рази (2024 рік - 29 разів); - очищення 50 контейнерів - на 12 раз (2024 рік - 120 раз); - очищення братських могил - на 2 рази (2024 рік - 14 разів); - знесення дерев - на 170 шт (2024 рік - 1120 шт); - видалення порослі - на 8 700 шт. (2024 рік - 43 500 шт) - очищення від снігу та посипання протиожеледними матеріалами (2024 рік - 3000 м2). | K52: 41000000 | L52: =K52*1.124 -> 46084000 | M52: =L52*1.078 -> 49678552 | O52: =F52*1.112+0.94 -> 45668382 | P52: 37 од. (вивезення міття - 28000 м3)
B53: 5.7 | C53: Охорона кладовищ | D53: 2240 | E53: 15019428 | F53: 14837910 | G53: 9125850 | H53: 5712060 | I53: 14833800 | J53: 13 од. (зменшення годин охорони у сявткові дні на 3 год, у робочі дні та суботу - на 2 год., у неділю - на 1 год.) | K53: 16601604 | L53: 18660203 | M53: 20115699 | O53: 16601604 | P53: 13 од. (режим роботи охорони: будні з 16.00-09.00; субота з 14.00-09.00, неділя - 09.00-09.00; по 2 охоронці на 11 кладовищах, Західне - 3 охор., Центральне - 5 охор.)
B54: 5.8 | C54: Поточний ремонт контейнерних систем для розміщення контейнерів для збору твердих побутових відходів | D54: 2240 | E54: 1631000 | F54: 1631000 | G54: 1553448 | H54: 77552 | I54: 1631000 | J54: 2024 р. -100 од. 2025 - 90 од. | K54: =1631000+869000 -> 2500000 | L54: =K54*1.124 -> 2810000 | M54: =L54*1.078 -> 3029180 | O54: =I54*1.112 -> 1813672 | P54: 100 од.
B55: 5.9 | C55: Електроенергія на утримання ДНС (ДРІМ - головний розпорядник) | D55: 2273 | E55: 2326000 | F55: 2326000 | G55: 1184009.28 | H55: 1141990.72 | I55: 2326000 | K55: 2326000 | L55: =K55*1.124 -> 2614424 | M55: 2818349 | O55: =I55*8%+2326000 -> 2512080 | P55: збільшено на 8%
B56: 5.10 | C56: Заходи, пов'язані з утриманням об'єктів (елементів) благоустрою КП "Кривбасводоканал" (утримання ДНС, поточний ремонт ДНС) | D56: 2610 | E56: 4438171 | F56: 4438171 | G56: =G57+G58+G60 -> 1695977.45 | H56: 2742193.55 | I56: =I57+I58+I60 -> 4438171 | K56: =K57+K58+K60 -> 2000000 | L56: =L57+L58+L60 -> 3000000 | M56: =M57+M58+M60 -> 3200000 | O56: =O57+O58+O60 -> 4438171
C57: оплата праці | E57: 2417980 | F57: 2417980 | G57: 914170.86 | H57: 1503809.14 | I57: =2221583+196397 -> 2417980 | K57: 1639345 | L57: 1639345 | M57: 1639345 | O57: =2221583+196397 -> 2417980
C58: нарахування на оплату праці | E58: 531956 | F58: 531956 | G58: 194827.87 | H58: 337128.13 | I58: 531956 | K58: 360655 | L58: 360655 | M58: 360655 | O58: 531956
C59: Оплата комунальних послуг та енергоносіїв | H59: 0
C60: інші видатки | E60: 1488235 | F60: 1488235 | G60: 586978.72 | H60: 901256.28 | I60: =1263161+225074 -> 1488235 | K60: 0 | L60: 1000000 | M60: 1200000 | O60: =1263161+225074 -> 1488235
B61: 5.11 | C61: Заходи у сфері благоустрою (КП "Парк культури і відпочинку ім. Б.Хмельницького" КМР) | D61: 2610 | E61: =E62+E63+E64+E65 -> 38018184 | F61: =F62+F63+F64+F65 -> 38018184 | G61: =G62+G63+G64+G65 -> 22567981.34 | H61: 15450202.66 | I61: =I62+I63+I64+I65 -> 37998184 | J61: Збільшення заробітної плати з нарахуванням згідно норм прожиткового мінімуму для працездатних осіб та застосування коефіцієнта згідно з галузевою угодою на 2023-2027 роки *не менше 200 % (було 180%) . Енергоносії на рівні видатків 2024 року, згідно листа МФУ. При цьому зменшено видатки на утримання об"єктів (елементів) благоустрою у сумі 6,52 млн.грн. (було 10,0 млн.грн.) | K61: =K62+K63+K64+K65 -> 44255387 | L61: =L62+L63+L64+L65 -> 47998289 | M61: =M62+M63+M64+M65 -> 50644642 | O61: =O62+O63+O64+O65 -> 47002680 | P61: Збільшення заробітної плати з нарахуванням згідно норм прожиткового мінімуму для працездатних осіб та застосування коефіцієнта згідно з галузевою угодою на 2023-2027 роки *не менше 200 % (було 180%) . А також збільшено штатну чисельність на 6 од. (із них 5 озеленювачів, 1 майстер) Енергоносії збільшено до потреби у зв"язку з передачею на баланс обєктів (елементів) благоустрою. Відповідно до потреби видатки на утримання об"єктів (елементів) благоустрою у сумі 10,0 млн.грн.
C62: оплата праці | E62: 9353090 | F62: 9353090 | G62: 5378081.62 | H62: 3975008.38 | I62: 11090040 | K62: 11533351 | L62: 11533351 | M62: 11533351 | O62: 12779283
C63: нарахування на оплату праці | E63: 2057681 | F63: 2057681 | G63: 1199366.05 | H63: 858314.95 | I63: 2439810 | K63: 2537339 | L63: 2537339 | M63: 2537339 | O63: 2811443
C64: Оплата комунальних послуг та енергоносіїв | E64: 1335250 | F64: 1335250 | G64: 873391.17 | H64: 461858.83 | I64: =127188+744974+463088 -> 1335250 | K64: =192456+1100476+463088+338715 -> 2094735 | L64: 2354482 | M64: 2538132 | O64: =192456+1100476+463088 -> 1756020
C65: інші видатки | E65: 25272163 | F65: 25272163 | G65: 15117142.5 | H65: 10155020.5 | I65: =4042084+19028630+14670+43700+4000 -> 23133084 | K65: =29655934+523953+36240-1176640-523953-425572 -> 28089962 | L65: 31573117 | M65: 34035820 | O65: =4042084+25551480+14670+43700+4000 -> 29655934
B66: 5.12 | C66: Заходи у сфері благоустрою (КП "Сансервіс" КМР) | D66: 2610 | E66: =SUM(E67:E70) -> 137947182 | F66: =F67+F68+F69+F70 -> 137947182 | G66: =G67+G68+G69+G70 -> 78814432.2 | H66: 59132749.8 | I66: =I67+I68+I69+I70 -> 137947182 | J66: Збільшення заробітної плати з нарахуванням згідно норм прожиткового мінімуму для працездатних осіб та застосування коефіцієнта згідно з галузевою угодою на 2023-2027 роки *не менше 200 % (було 180%) . Енергоносії на рівні видатків 2024 року, згідно листа МФУ. | K66: =K67+K68+K69+K70 -> 139809393 | L66: =L67+L68+L69+L70 -> 145910122 | M66: =M67+M68+M69+M70 -> 150223534 | O66: =O67+O68+O69+O70 -> 146981192 | P66: Збільшення заробітної плати з нарахуванням згідно норм прожиткового мінімуму для працездатних осіб та застосування коефіцієнта згідно з галузевою угодою на 2023-2027 роки *не менше 200 % (було 180%) . Енергоносії (е/е, вода) збільшено у зв"язку з відновленням роботи фонтану.Збільшення видатків на придбання лавок , урн, контейнерів для сміття. Придбання матеріалів для виконання ремонтно будівельних робіт на територіях дільниць озеленення в районах міста. Послуги з поточного ремонту адмін будівель КП "Сансервіс" 4,3 млн.грн. Проведення інвентаризація та паспортизиції об"єктів благоустрою. Придбання спецодягу.
C67: оплата праці | E67: 66535016 | F67: 66535016 | G67: 38365124.77 | H67: 28169891.23 | I67: 75408068 | K67: =76646207-2375738 -> 74270469 | L67: =76646207-2375738 -> 74270469 | M67: =76646207-2375738 -> 74270469 | O67: =68528383 -> 68528383
C68: нарахування на оплату праці | E68: 14637704 | F68: 14637704 | G68: 8480382.78 | H68: 6157321.22 | I68: 16589775 | K68: =16862165-522662 -> 16339503 | L68: =16862165-522662 -> 16339503 | M68: =16862165-522662 -> 16339503 | O68: =15076244 -> 15076244
C69: оплата комунальних послуг та енергоносіїв | E69: 5086841 | F69: 5086841 | G69: 2015012.11 | H69: 3071828.89 | I69: 4915619 | K69: 4915619 | L69: 5525156 | M69: 5956118 | O69: 4245193
C70: інші видатки | E70: =51687621 -> 51687621 | F70: 51687621 | G70: 29953912.54 | H70: 21733708.46 | I70: 41033720 | K70: =147237352-K67-K68-K69+60920+190362+216526-547940+46620-2918400-4476047 -> 44283802 | L70: 49774994 | M70: 53657444 | O70: 59131372
B71: 5.13 | C71: Поточний ремонт вулиць і доріг комунальної власності міста | D71: 2240 | E71: 700000000 | F71: 820000000 | G71: 362626636.8 | H71: =F71-G71 -> 457373363.2 | I71: 800000000 | J71: 136600 | K71: 800000000 | L71: =800000000-53382800-773267-1000000-233096+1000000+5101 -> 745615938 | M71: =800000000-21196419-1200000-287167-250731+1000000+65731 -> 778131414 | O71: 984000000 | P71: 164000
B72: 5.14 | C72: Утримання автошляхів міста | D72: 2240 | E72: 250000000 | F72: 304000000 | G72: 175905308.4 | H72: =F72-G72 -> 128094691.6 | I72: 300000000 | J72: 211 | K72: 300000000 | L72: 300000000 | M72: 300000000 | O72: 300000000 | P72: 211
B73: 5.15 | C73: Утримання світлофорних об'єктів | D73: 2240 | E73: 4000000 | F73: 4000000 | G73: 2633092.8 | H73: 1366907.2 | I73: 4000000 | J73: 135 | K73: =4448000+1500000-136455-811545 -> 5000000 | L73: =K73*1.124 -> 5620000 | M73: =L73*1.078 -> 6058360 | O73: 4800000 | P73: 135
B74: 5.16 | C74: Поточний ремонт світлофорних об'єктів | D74: 2240 | E74: 7000000 | F74: =7000000-297000-3788399.08 -> 2914600.92 | G74: 643351.2 | H74: 2271249.72 | I74: 7000000 | J74: 12 | K74: =5000000-1500000-869000+811545 -> 3442545 | L74: 3869421 | M74: 4171235 | O74: 7000000 | P74: 12
B75: 5.17 | C75: Поточний ремонт мостів та шляхопроводів (ДРІМ) | D75: 2240 | E75: 10000000 | F75: =10000000-7100000+7100000-8207055.88 -> 1792944.12 | G75: 1277197.34 | H75: 515746.78 | I75: 10000000 | J75: 2 | K75: 10000000 | L75: 10000000 | M75: 10000000 | O75: 15000000 | P75: 3
B76: 5.18 | C76: Проведення технічної перевірки засобів обліку електричної енергії на світлофорних об’єктах | D76: 2240 | E76: 0 | F76: 30000 | G76: 5289.44 | H76: 24710.56 | I76: 30000 | J76: 15 | K76: 30000 | L76: 33720 | M76: 36350 | O76: 30000 | P76: 15
B77: 5.19 | C77: Приєднанння до електричних мереж світлофорних об'єктів | D77: 2240 | E77: 0 | F77: 30000 | G77: 0 | H77: 30000 | I77: 30000 | J77: 3 | K77: 30000 | L77: 33720 | M77: 36350 | O77: 30000 | P77: 3
B78: 5.20 | C78: Послуги з експертного обстеження стану конструкцій мостів та шляхопроводів | D78: 2240 | E78: 0 | F78: 198000 | G78: 0 | H78: 198000 | I78: 198000 | J78: 4 | K78: 198000 | L78: 222552 | M78: 239911 | O78: 237600 | P78: 4
B79: 5.21 | C79: Послуги з технічного нагляду за поточним ремонтом мостів та шляхопроводів | D79: 2240 | E79: 0 | F79: =99000-78585.32 -> 20414.68 | G79: 14593 | H79: 5821.68 | I79: 99000 | J79: 2 | K79: 99000 | L79: 111276 | M79: 119956 | O79: 99000 | P79: 3
B80: 5.22 | C80: Придбання, установлення, утримання, ремонт об'єктів (елементів) вулично-дорожньої мережі (КП "Парковка та реклама" КМР) | D80: 2610 | E80: =SUM(E81:E83) -> 20000000 | F80: =F81+F82+F83 -> 19464600 | G80: =G81+G82+G83 -> 9049056.57 | H80: 10415543.43 | I80: =I81+I82+I83 -> 20000000 | K80: =K81+K82+K83 -> 18692562 | L80: =L81+L82+L83 -> 20585554 | M80: =M81+M82+M83 -> 21923960 | O80: =O81+O82+O83 -> 21206010
B81: 5.22.1 | C81: оплата праці | E81: 2656248 | F81: 2656248 | G81: 1220382.95 | H81: 1435865.05 | I81: 2808609 | K81: 2808609 | L81: 2808609 | M81: 2808609 | O81: 2961801
B82: 5.22.2 | C82: нарахування на оплату праці | E82: 584371 | F82: 584371 | G82: 268484.3 | H82: 315886.7 | I82: 617892 | K82: 617892 | L82: 617892 | M82: 617892 | O82: 651599
B83: 5.22.3 | C83: інші видатки | E83: 16759381 | F83: =16759381-535400 -> 16223981 | G83: 7560189.32 | H83: 8663791.68 | I83: 16573499 | K83: =16573499-1307256-182 -> 15266061 | L83: 17159053 | M83: 18497459 | O83: 17592610
B84: 5.23 | C84: Придбання прапорів для будівництва меморіапльного комплексу в секторі почесних поховань | D84: 2210 | E84: 0 | F84: 0 | G84: 0 | H84: 0 | K84: =691313-691313+3353 -> 3353 | L84: 773267 | M84: 0
C85: Всього | E85: =E40+E48+E49+E50+E51+E52+E53+E54+E55+E61+E66+E56+E71+E72+E73+E74+E75+E76+E77+E78+E79+E80+E84 -> 1392788467 | F85: =F40+F48+F49+F50+F51+F52+F53+F54+F55+F61+F66+F56+F71+F72+F73+F74+F75+F76+F77+F78+F79+F80+F84 -> 1554373930 | G85: =G40+G48+G49+G50+G51+G52+G53+G54+G55+G61+G66+G56+G71+G72+G73+G74+G75+G76+G77+G78+G79+G80+G84 -> 787351866.2 | H85: =H40+H48+H49+H50+H51+H52+H53+H54+H55+H61+H66+H56+H71+H72+H73+H74+H75+H76+H77+H78+H79+H80+H84 -> 767022064.2 | I85: =I40+I48+I49+I50+I51+I52+I53+I54+I55+I61+I66+I56 -> 400549662 | K85: =K40+K48+K49+K50+K51+K52+K53+K54+K55+K61+K66+K56+K71+K72+K73+K74+K75+K76+K77+K78+K79+K80+K84 -> 1576479359 | L85: =L40+L48+L49+L50+L51+L52+L53+L54+L55+L61+L66+L56+L71+L72+L73+L74+L75+L76+L77+L78+L79+L80+L84 -> 1568054948 | M85: =M40+M48+M49+M50+M51+M52+M53+M54+M55+M61+M66+M56+M71+M72+M73+M74+M75+M76+M77+M78+M79+M80+M84 -> 1631240727 | O85: =O40+O48+O49+O50+O51+O52+O53+O54+O55+O61+O66+O56 -> 495953212
A86: 1216090 "Інша діяльність у сфері житлово-комунального господарства"
A87: 6. | B87: 6.1 | C87: Оформлення висновку спеціалізованої організації про можливість (неможливість) подальшої експлуатації основних засобів, інших необоротних матеріальних активів | D87: 2240 | E87: 26000 | F87: 26000 | G87: 0 | H87: =F87-G87 -> 26000 | I87: 5000 | K87: 5000 | L87: =K87*1.124 -> 5620 | M87: 6058 | O87: 5000
B88: 6.2 | C88: Витрати, пов'язані із поштовими послугами | D88: 2240 | E88: 19300 | F88: =19300-9300 -> 10000 | G88: 904 | H88: =F88-G88 -> 9096 | I88: 5000 | K88: 5000 | L88: =K88*1.124 -> 5620 | M88: 6058 | O88: 5000
B89: 6.3 | C89: Висвітлення діяльності департаменту розвитку інфраструктури міста виконкому Криворізької міської ради в засобах масової інформації | D89: 2240 | E89: 49000 | F89: =49000-49000 -> 0 | G89: 0 | H89: 0 | I89: 0 | K89: =I89*1.112 -> 0 | L89: 0 | M89: =L89*1.078 -> 0 | O89: =I89*1.112 -> 0
B90: 6.4 | C90: Витрати, пов'язані із юридичними послугами | D90: 2240 | E90: 100000 | F90: 100000 | G90: 59400 | H90: 40600 | I90: 100000 | K90: 110000 | L90: 123640 | M90: 133284 | O90: =I90*1.112 -> 111200
B91: 6.5 | C91: Проведення експертиз | D91: 2240 | E91: 49000 | F91: 49000 | G91: 0 | H91: 49000 | I91: 49000 | K91: 55000 | L91: 61820 | M91: 66642 | O91: =I91*1.112 -> 54488
B92: 6.6 | C92: Еспертне обстеження, техніко-економічне обгрунтування (бомбосховища) | D92: 2240 | E92: 0 | F92: 200000 | G92: 0 | H92: 200000 | I92: 0 | K92: 0 | L92: 0 | M92: =L92*1.078 -> 0 | O92: 0
B93: 6.7 | C93: Послуги з доставки до Криворізького міжрайонного відділу комунального закладу "Дніпропетровське обласне бюро судово-медичної експертизи "Дніпропетровської обласної ради" тіл одиноких громадян, осіб без певного місця проживання, осіб, від поховання яких відмовилися рідні, знайдених, невпізнаних трупів, у разі відсутності родичів або осіб чи установ, які можуть взяти на себе доставку тіл | D93: 2240 | E93: 9860000 | F93: 9813124.4 | G93: 5415120 | H93: 4398004.4 | I93: 9770398 | J93: 2022 рік - 2082 тіл; 2023 - 2048 тіл, 2024 - 2360; 2025- 2200 тіл. Факт за 5 міс. 835 од. | K93: =9770398-102670 -> 9667728 | L93: 10866526 | M93: 11714115 | O93: 10864685 | P93: 2 360 тіл
B94: 6.8 | C94: Оцінка майна | D94: 2240 | E94: 50000 | F94: 50000 | G94: 13500 | H94: 36500 | I94: 50000 | K94: 50000 | L94: 56200 | M94: 60584 | O94: 50000
B95: 6.9 | C95: Видатки, пов’язані із судовими процесами, оголошеннями за судовими справами | D95: 2800 | E95: 67738 | F95: 67738 | G95: 9128.87 | H95: 58609.13 | I95: 67738 | K95: 75325 | L95: 84655 | M95: 91269 | O95: 75325
B96: 6.10 | C96: Відшкодування коштів за рішенням суду | D96: 2800 | E96: 368818 | F96: =368818+513772 -> 882590 | G96: =165118.23 -> 165118.23 | H96: 717471.77 | I96: 1500000 | K96: 1000000 | L96: =1000000-1000000 -> 0 | M96: =1000000-1000000 -> 0 | O96: 1500000
B97: 6.11 | C97: Сплата земельного податку | D97: 2800 | E97: 188000 | F97: 188000 | G97: 22377.52 | H97: 165622.48 | I97: 84000 | K97: 84000 | L97: 94416 | M97: 101780 | O97: 84000
B98: 6.12 | C98: Утримання модульних туалетів (КП "Сансервіс КМР") | D98: 2610 | E98: =E99+E100+E101 -> 2950420 | F98: =F99+F100+F101 -> 2950420 | G98: =G99+G100+G101 -> 1775594.43 | H98: 1174825.57 | I98: =I99+I100+I101 -> 3159780 | J98: 2024 - 12 од.; 2025 - 13 од. Якщо видатки залишити на рівні 2024 року, то потреба навіть більша і тільки на з/п вистачить | K98: =K99+K100+K101 -> 4141944 | L98: =L99+L100+L101 -> 4182031 | M98: =M99+M100+M101 -> 4219698 | O98: =O99+O100+O101 -> 3540083
B99: 6.12.1 | C99: оплата праці | E99: 2171520 | F99: 2171520 | G99: 1357166.77 | H99: 814353.23 | I99: 2589984 | K99: 3021648 | L99: 3021648 | M99: 3021648 | O99: 2589984
B100: 6.12.2 | C100: нарахування на оплату праці | E100: 477731 | F100: 477731 | G100: 278150.22 | H100: 199580.78 | I100: 569796 | K100: 664762.08 | L100: 664762 | M100: 664762 | O100: 569796
B101: 6.12.3 | C101: Оплата комунальних послуг та енергоносіїв | E101: 301169 | F101: 301169 | G101: 140277.44 | H101: 160891.56 | I101: 0 | K101: 455533.92 | L101: =188607+307014 -> 495621 | M101: 533288 | O101: =167864+212439 -> 380303
B102: 6.13 | C102: Заходи поводження з безпритульними тваринами (КП "Центр поводження з тваринами" КМР) | D102: 2610 | E102: =SUM(E103:E107) -> 24801379 | F102: =F103+F104+F105+F106+F107 -> 24801379 | G102: =G103+G104+G105+G106+G107 -> 14016973.45 | H102: 10784405.55 | I102: =I103+I104+I105+I106+I107 -> 24801379 | J102: 2022 - 2728 тварин; 2023 - 3971 тварин; 2024 - 3500 тварин, 2025 - 3500 тварин | K102: =K103+K104+K105+K106+K107 -> 23942103 | L102: =L103+L104+L105+L106+L107 -> 26690987 | M102: =M103+M104+M105+M106+M107 -> 27007910 | O102: =O103+O104+O105+O106+O107 -> 26430411 | P102: 3 500 тварин
B103: 6.13.1 | C103: оплата праці | E103: 8200735 | F103: 8200735 | G103: 4871456.29 | H103: 3329278.71 | I103: =9660757 -> 9660757 | J103: Збільшення заробітної плати з нарахуванням згідно норм прожиткового мінімуму для працездатних осіб та застосування коефіцієнта згідно з галузевою угодою на 2023-2027 роки *не менше 200 % (було 180%). Збільшення показників споживанням електричної енергії у 2025 році, зумовлене завершенням поточного ремонту будівлі та облаштуванням місця прийому тварин, запуском додаткових 10 вольєрів, встановлення засобів підігріву води, освітлення, та котла для обігріву. Зменшення видатків на медикаменти, матеріали у зв’язку із зменшенням кількості вольєрів, які планується побудувати у порівнянні з 2024 роком. Зменшення витрат на оренду авто для відлову тварин | K103: =9660757 -> 9660757 | L103: =9660757 -> 9660757 | M103: =9660757 -> 9660757 | O103: =9660757 -> 9660757 | P103: Збільшення заробітної плати. Збільшення споживанням електричної енергії зумовлене завершенням поточного ремонту будівлі та облаштуванням місця прийому тварин, запуском додаткових 10 вольєрів, встановлення засобів підігріву води, освітлення, та котла для обігріву. Збільшення видатків на медикаменти, витрат на оренду авто для відлову тварин.
B104: 6.13.2 | C104: нарахування на оплату праці | E104: 1804162 | F104: 1804162 | G104: 1052180.23 | H104: 751981.77 | I104: 2125367 | K104: 2125367 | L104: 2125367 | M104: 2125367 | O104: 2125367
B105: 6.13.3 | C105: медикаменти та перев'язувальні матеріали | E105: 3349322 | F105: 3349322 | G105: 2004292.34 | H105: 1345029.66 | I105: 2935656 | K105: 2581715 | L105: 3849299 | M105: 3888215 | O105: 3537959
B106: 6.13.4 | C106: Оплата комунальних послуг та енергоносіїв | E106: 1641409 | F106: 1641409 | G106: 696950.76 | H106: 944458.24 | I106: 2717540 | K106: =75149+63333+2812275 -> 2950757 | L106: 2717540 | M106: 2717540 | O106: 2502959
B107: 6.13.5 | C107: інші видатки | E107: 9805751 | F107: 9805751 | G107: 5392093.83 | H107: 4413657.17 | I107: 7362059 | K107: =5359611+2489690+81280-1307256+182 -> 6623507 | L107: 8338024 | M107: 8616031 | O107: 8603369
B108: 6.14 | C108: Ексгумація трупів | E108: 0 | F108: 46875.6 | G108: 19913.04 | H108: 26962.56 | K108: 0 | L108: 0 | M108: 0
B109: 6.15 | C109: Розробка проєкту землеустрою щодо відведення земельної ділянки у постійне користування під об'єкти нерухомості | E109: 0 | F109: 99000 | G109: 0 | H109: 99000 | K109: 0 | L109: 0 | M109: 0
C110: Всього | E110: =E87+E88+E89+E90+E91+E92+E93+E94+E95+E96+E97+E98+E102+E108+E109 -> 38529655 | F110: =F87+F88+F89+F90+F91+F92+F93+F94+F95+F96+F97+F98+F102+F108+F109 -> 39284127 | G110: =G87+G88+G89+G90+G91+G92+G93+G94+G95+G96+G97+G98+G102+G108+G109 -> 21498029.54 | H110: =H87+H88+H89+H90+H91+H92+H93+H94+H95+H96+H97+H98+H102+H108+H109 -> 17786097.46 | I110: =I87+I88+I89+I90+I91+I92+I93+I94+I95+I96+I97+I98+I102 -> 39592295 | K110: 39136100 | L110: 42171515 | M110: 43407398 | O110: 42720192
A111: 1217640 "Заходи з енергозбереження"
A112: 7 | B112: 7.1 | C112: Розроблення схеми телопостачання міста | D112: 2281 | E112: 0 | F112: =5000000-394080.8 -> 4605919.2 | G112: 0 | H112: =F112-G112 -> 4605919.2 | I112: 0 | K112: 0 | L112: 0 | M112: 0 | O112: 0
B113: 7.2 | C113: Заходи з енергозбереження: поточний ремонт конструктивних елементів у житлових будинках | D113: 2240,2610 | E113: 0 | F113: 35000000 | G113: 0 | H113: =F113-G113 -> 35000000 | K113: =35000000-35000000 -> 0 | L113: 0 | M113: 0
C114: Всього | E114: =E112+E113 -> 0 | F114: =F112+F113 -> 39605919.2 | G114: =G112+G113 -> 0 | H114: =H112+H113 -> 39605919.2 | I114: =I112 -> 0 | J114: =J112 -> 0 | K114: =K112+K113 -> 0 | L114: =L112+L113 -> 0 | M114: =M112+M113 -> 0 | O114: =O112 -> 0
A115: 1217693 "Інші заходи, пов'язані з економічною діяльністю"
A116: 8 | B116: 8.1 | C116: Фінансове забезпечення КП «Кривбастеплоенерго» КМР | D116: 2610 | E116: =E117+E118+E119 -> 1849207 | F116: =F117+F118+F119 -> 1849207 | G116: =G117+G118+G119 -> 1065214.75 | H116: =H117+H118+H119 -> 783992.25 | I116: =I117+I118+I119 -> 1919388 | K116: =K117+K118+K119+K120 -> 3539751 | L116: =L117+L118+L119+L120 -> 3153473 | M116: =M117+M118+M119+M120 -> 3174934 | O116: =O117+O118+O119+O120 -> 3979406
B117: 8.1.1 | C117: оплата праці | E117: 1335522 | F117: 1335522 | G117: 790223.3 | H117: =F117-G117 -> 545298.7 | I117: 1573269 | K117: 2359289 | L117: 2359289 | M117: 2359289 | O117: 2359289
B118: 8.1.2 | C118: нарахування на оплату праці | E118: 293815 | F118: 293815 | G118: 173849.45 | H118: =F118-G118 -> 119965.55 | I118: 346119 | K118: 519044 | L118: 519044 | M118: 519044 | O118: 519044
B119: 8.1.3 | C119: інші видатки | E119: 219870 | F119: 219870 | G119: 101142 | H119: 118728 | I119: 0 | K119: =274786-30000 -> 244786 | L119: 275140 | M119: 296601 | O119: =850+450+700+720+7700+750+4800+4000+4800+15000+826287+14500+1800+5000+30000+105966+25000+30000+1500+1950+6000+1500+4800+10000+3000-6000-826287 -> 274786
B120: 8.1.4 | C120: Витрати повязані з валютообмінними операціями | E120: 0 | F120: 0 | G120: 0 | H120: 0 | I120: 0 | K120: 416632 | L120: 0 | M120: 0 | O120: 826287
B121: 8.2 | C121: Витрати, пов'язані з оплатою послуг юридичних, аудиту, процесуального агента, тощо | D121: 2610 | E121: =E122 -> 230000 | F121: =F122 -> 230000 | G121: =G122 -> 178560 | H121: 51440 | I121: =I122 -> 230000 | K121: =K122 -> 230000 | L121: =L122 -> 230000 | M121: =M122 -> 230000 | O121: =O122 -> 230000
B122: 8.2.1 | C122: Послуги зовнішніх аудиторів | E122: 230000 | F122: 230000 | G122: 178560 | H122: 51440 | I122: 230000 | K122: 230000 | L122: 230000 | M122: 230000 | O122: 230000
B123: 8.3 | C123: Витрати, що здійснюються під час реалізації інвестиційного проекту "Підвищення енергоефективності громадських будівель у м. Кривому Розі", який підтримується міжнародною фінансовою організацією ЄБРР (погашення основної суми кредиту, процентів, комісій тощо) КП "Кривбастеплоенерго" КМР | D123: 2610 | E123: =SUM(E124:E125) -> 23189363 | F123: =F124+F125 -> 17936228 | G123: =G124+G125 -> 2983471.37 | H123: 14952756.63 | I123: =I124+I125 -> 44841679.81 | K123: =K124+K125 -> 41549048 | L123: =L124+L125 -> 66191047 | M123: =M124+M125 -> 62336461 | O123: =O124+O125 -> 44841680
B124: 8.3.1 | C124: сплата тіла кредиту та відсотків за користування кредитними коштами, комісія за резервування 0,5% | E124: 17585279 | F124: 17585279 | G124: 2983471.37 | H124: 14601807.63 | I124: =288883.06+10129957.99+6050115.46+15562105.48+12681365+129252.82 -> 44841679.81 | K124: =24562175+16454784+532089 -> 41549048 | L124: =39230717+26960330 -> 66191047 | M124: =39145584+23190877 -> 62336461 | O124: =288883.06+10129957.99+6050115.46+15562105.48+12681365+129252.82+0.19 -> 44841680
B125: 8.3.2 | C125: резервування валюти на валютному рахунку | E125: 5604084 | F125: =1850949-1500000 -> 350949 | G125: 0 | H125: 350949 | I125: 0 | K125: 0 | O125: 0
C126: Всього | E126: =E116+E121+E123 -> 25268570 | F126: =F116+F121+F123 -> 20015435 | G126: =G116+G121+G123 -> 4227246.12 | H126: =H116+H121+H123 -> 15788188.88 | I126: =I116+I121+I123 -> 46991067.81 | K126: =K116+K121+K123 -> 45318799 | L126: =L116+L121+L123 -> 69574520 | M126: =M116+M121+M123 -> 65741395 | O126: =O116+O121+O123 -> 49051086
A127: 1219770 "Інші субвенції з місцевого бюджету"
A128: 12. | B128: 11.1. | C128: «Громадський бюджет 2022» | D128: 2620 | E128: =E129+E134+E138+E143+E146 -> 2811905 | F128: =F129+F134+F138+F143+F146 -> 0 | G128: =G129+G134+G138+G143+G146 -> 0
B129: 11.1.1. | C129: По Саксаганському району: | E129: =E130+E131+E132+E133 -> 553607 | F129: =F130+F131+F132+F133 -> 0 | G129: =G130+G131+G132+G133 -> 0
B130: 11.1.2. | C130: Простір родинного комфорту (вул.Володимира Великого, 32) | E130: 1400 | F130: 0 | G130: =F130 -> 0
B131: 11.1.3. | C131: Улюблений Саксаганський: сквер з широким серцем | E131: 228480 | F131: 0 | G131: =F131 -> 0
B132: 11.1.4. | C132: «Спорт для людей літнього віку. Час-дій» | E132: 24000 | F132: 0 | G132: =F132 -> 0
B133: 11.1.5. | C133: Відеоспостереження в сквері "Співдружності" | E133: 299727 | F133: 0 | G133: =F133 -> 0
B134: 11.2.1. | C134: По Металургійному району: | E134: =E135+E136+E137 -> 458314 | F134: =F135+F136+F137 -> 0 | G134: =G135+G136+G137 -> 0
B135: 11.2.2. | C135: "Не хочу бути тюхтієм!" | E135: 104566 | F135: 0 | G135: =F135 -> 0
B136: 11.2.3. | C136: "Безпечний сквер" | E136: 277700 | F136: 0 | G136: =F136 -> 0
B137: 11.2.4. | C137: "У здоровому тілі – здоровий дух!" | E137: 76048 | F137: 0 | G137: =F137 -> 0
B138: 11.3.1. | C138: По Довгинцівському району: | E138: =E139+E140+E141+E142 -> 405590 | F138: =F139+F140+F141+F142 -> 0 | G138: =G139+G140+G141+G142 -> 0
B139: 11.3.2. | C139: «Тим, хто врятував світ» пам’ятник ліквідаторам аварії на ЧАЕС у Довгинцівському районі | E139: 5000 | F139: 0 | G139: =F139 -> 0
B140: 11.3.3. | C140: Дитячий спортивно-ігровий комплекс «Druzhba» у Довгинцівському районі | E140: 259320 | F140: 0 | G140: =F140 -> 0
B141: 11.3.4. | C141: «Комфортні хвилини» | E141: 16620 | F141: 0 | G141: =F141 -> 0
B142: 11.3.5. | C142: "Гра на рівних" | E142: 124650 | F142: 0 | G142: =F142 -> 0
B143: 11.4.1. | C143: По Інгулецькому району: | E143: =E144+E145 -> 221291 | F143: =F144+F145 -> 0 | G143: =G144+G145 -> 0
B144: 11.4.2. | C144: "Павляндія" Дитячо-спортивний майданчик | E144: 137291 | F144: 0 | G144: =F144 -> 0
B145: 11.4.3. | C145: "Пильне око"- система відеоспостереження | E145: 84000 | F145: 0 | G145: =F145 -> 0
B146: 11.5.1. | C146: По Тернівському району: | E146: =E147+E148+E149 -> 1173103 | F146: =F147+F148+F149 -> 0 | G146: =G147+G148+G149 -> 0
B147: 11.5.2. | C147: "17 квартал" - Я та сім'я (облаштування зони відпочинку по вул. Сергія Колачевського) | E147: 992838 | F147: 0 | G147: =F147 -> 0
B148: 11.5.3. | C148: Відновлення волейбольного майданчику | E148: 24500 | F148: 0 | G148: =F148 -> 0
B149: 11.5.4. | C149: 17 квартал-територія безпеки (відеоспостереження громадського простору по вул. С.Колачевського, 105) | E149: 155765 | F149: 0 | G149: =F149 -> 0
A150: 1218240 "Заходи та роботи з територіальної оборони"
A151: 9 | B151: 9.1 | C151: Утримання елементів благоустрою (біотуалетів) | D151: 2240 | E151: 12292579 | F151: 12292579 | G151: 6728295.5 | H151: =F151-G151 -> 5564283.5 | I151: 11897764 | J151: 182 рази (16 біотуалетів) один раз на два дні | K151: 11897764 | L151: 0 | M151: 0 | O151: 11897764 | P151: Зменшилась кількість туалетів з 18 од. до 16 од. у звязку зпошкодженням
C152: Всього | E152: =E151 -> 12292579 | F152: =F151 -> 12292579 | G152: =G151 -> 6728295.5 | H152: 5564283.5 | I152: 11897764 | K152: 11897764 | L152: 0 | M152: 0 | O152: 11897764
A153: 1217520 "Реалізація Національної програми інформатизації "
A154: 10 | B154: 10.1 | C154: Фінансування послуг мережі Інтернет, програмного забезпечення та інформаційних систем(КП "Парк культури і відпочинку ім. Б. Хмельницького" КМР) | D154: 2610 | E154: 39600 | F154: 39600 | G154: 17200 | H154: =F154-G154 -> 22400 | I154: 59600 | K154: =59600+51380 -> 110980 | L154: 124742 | M154: 134472 | O154: 59600
B155: 10.2 | C155: Фінансування послуг мережі Інтернет, програмного забезпечення та інформаційних систем (КП "Сансервіс" КМР) | D155: 2610 | E155: 159600 | F155: 159600 | G155: 72000 | H155: =F155-G155 -> 87600 | I155: 159600 | K155: =160128+83468+7428+66700+38253 -> 355977 | L155: 273114 | M155: 293871 | O155: 160128
B156: 10.3 | C156: КП «Кривбастеплоенерго» КМР програмного забезпечення | D156: 2610 | E156: 0 | F156: 0 | G156: 0 | H156: 0 | I156: 6000 | K156: =53200+6000 -> 59200 | L156: =66541-5101 -> 61440 | M156: =71731-65731 -> 6000 | O156: =53200+6000 -> 59200
C157: Всього | E157: =E154+E155+E156 -> 199200 | F157: =F154+F155+F156 -> 199200 | G157: =G154+G155+G156 -> 89200 | H157: =H154+H155+H156 -> 110000 | I157: =I154+I155+I156 -> 225200 | K157: =K154+K155+K156 -> 526157 | L157: =L154+L155+L156 -> 459296 | M157: =M154+M155+M156 -> 434343 | O157: =O154+O155+O156 -> 278928
A158: 1218110"Заходи із запобігання та ліквідації надзвичайних ситуацій та наслідків стихійного лиха"
A159: 11 | B159: 11.1 | C159: Заходи з ліквідації наслідків надзвичайних ситуацій, пов'язаних з ліквідацією наслідків збройної агресії Російської Федерації проти України КП «Сансервіс»КМР | D159: 2610 | E159: 0 | F159: 535400 | G159: 0 | H159: =F159-G159 -> 535400 | I159: 59600 | K159: 3162021 | L159: 0 | M159: 0 | O159: 59600
C161: Спеціальний фонд усього | E161: =E182+E191+E195+E204+E223+E233+E243+E246 -> 303335118 | F161: =F182+F191+F195+F204+F223+F233+F243+F246 -> 728299310.7 | G161: =G182+G191+G195+G204+G223+G233+G243+G246 -> 69962106.14 | H161: =H182+H191+H223+H233+H195+H204 -> 650823171.5 | I161: =I182+I191+I195+I204+I223+I233+I243+I246+#REF! ->  | K161: =K182+K191+K195+K204+K223+K233+K243+K246+K249+K185 -> 422502427 | L161: =L182+L191+L195+L204+L223+L233+L243+L246+M250+L185 -> 23574600 | M161: =M182+M191+M195+M204+M223+M233+M243+M246+M249+M185 -> 19691200 | O161: =O182+O191+O195+O204+O223+O233+O243+O246+#REF! ->  | R161: =129407600 -> 129407600
C162: у тому числі: | R162: =R161+K206+K222+K243 -> 426402450
A163: 1216011 "Експлуатація та технічне обслуговування житлового фонду"
A164: 1. | B164: 1.1. | C164: Підтримка ОСББ (виконання капітального ремонту) ДРІМ - головний розпорядник | D164: 3131 | E164: 30000000 | F164: 0 | G164: 0
B165: 1.1.2. | C165: Теплий під'їзд (капітальний ремонт із заміни вікон у місцях загального користування) | D165: 3210 | E165: 0 | F165: 13031844 | G165: 0
B166: 1.1.3. | C166: За поданими зверненнями:ОСББ «Клен-2» | D166: 3210 | E166: 0 | F166: 0
B167: 1.2. | C167: Капітальний ремонт житлового фонду | D167: 3131 | E167: =E168+E169 -> 38000000 | F167: =F168+F169 -> 0 | G167: =G168+G169 -> 0
B168: 1.2.1. | C168: «Капітальний ремонт споруди гуртожитку за адресою на вул. Панаса Мирного, 16, м. Кривий Ріг» | D168: 3131 | E168: 9000000 | F168: 0 | G168: 0
B169: 1.2.2. | C169: Капітальний ремонт фасадів житлових будинків (пр. Металургів, О. Поля, Старовокзальна) | D169: 3131 | E169: 29000000 | F169: 0
C170: Всього | E170: =E167+E166+E165+E164 -> 68000000 | F170: =F167+F166+F165+F164 -> 13031844 | G170: =G167+G166+G165+G164 -> 0
A171: 1216012 "Забезпечення діяльності з виробництва, транспортування, погстачання теплової енергії"
A172: 1. | C172: Придбання матеріалів, обладнання (устаткування) для виконання робіт з будівництва, реконструкції,капітального та поточного ремонту котелень та теплових мереж "КПТМ "Криворіжтепломережа" | D172: 3210 | E172: =F172 -> 10000000 | F172: 10000000
A173: 1216013 "Забезпечення діяльності водопровідно-каналізаційного господарства"
A174: 2. | B174: 2.1. | C174: Капітальний ремонт мереж водопостачання та водовідведення (КП "Кривбасводоканал" ) | D174: 3210 | E174: 11000000 | F174: =13566863-11000000 -> 2566863 | G174: 0
B175: 2.2. | C175: Придбання матеріалів, обладнання (устаткування) для виконання капітальних ремонтів водопровідних та каналізаційних мереж і споруд водопостачання та водовідведення (КП "Кривбасводоканал") | D175: 3210 | E175: 5000000 | F175: 0 | G175: 0
C176: Всього | E176: =E174+E175 -> 16000000 | F176: =F174+F175 -> 2566863 | G176: =G174+G175 -> 0
A177: 1216015 "Забезпечення надійної та безперебійної експлуатації ліфтів"
A178: 3. | B178: 3.1. | C178: Капітальний ремонт ліфтів | D178: 3131 | E178: 100000000 | F178: =20000000-20000000 -> 0 | G178: 0
C179: Всього | E179: =E178 -> 100000000 | F179: =F178 -> 0 | G179: =G178 -> 0
A180: 1216013 "Забезпечення діяльності водопровідно-каналізаційного господарства"
A181: 1 | B181: 1.1 | C181: Придбання матеріалів для виконання капітального ремонту мереж водопостачання та водовідведення на вул. Кропивницького 2024 рік (КП "Кривбасводоканал") | D181: 3210 | E181: 400000 | F181: 400000 | G181: 0 | H181: =F181-G181 -> 400000 | I181: =9000000+7300000+2200000 -> 18500000 | K181: 3000000 | L181: 0 | M181: 0 | O181: =9000000+8000000+2915000+16381458+2200000+12000000 -> 50496458 | R181: =K161-R162 -> -3900023
C182: Всього | E182: =E181 -> 400000 | F182: =F181 -> 400000 | G182: =G181 -> 0 | H182: =SUM(H181:H181) -> 400000 | I182: =I181 -> 18500000 | K182: =K181 -> 3000000 | L182: =L181 -> 0 | M182: =M181 -> 0 | O182: =O181 -> 50496458
A183: 1216015 "Забезпечення надійної та безперебійної експлуатації ліфтів"
A184: 2 | B184: 2.1 | C184: Капітальний ремонт ліфтів у багатоквартирних будинках | D184: 3131 | E184: 0 | F184: 0 | G184: 0 | H184: =F184-G184 -> 0 | I184: =9000000+7300000+2200000 -> 18500000 | K184: 23520749 | L184: 0 | M184: 0 | O184: =9000000+8000000+2915000+16381458+2200000+12000000 -> 50496458
C185: Всього | E185: =E184 -> 0 | F185: =F184 -> 0 | G185: =G184 -> 0 | H185: =SUM(H184:H184) -> 0 | I185: =I184 -> 18500000 | K185: =K184 -> 23520749 | L185: =L184 -> 0 | M185: =M184 -> 0 | O185: =O184 -> 50496458
A186: КПКВК 1216030 "Організація благоустрою населених пунктів"
A187: 3 | B187: 3.1 | C187: Придбання контейнерних систем для розміщення контейнерів для збору твердих побутових відходів | D187: 3110 | E187: 10000000 | F187: =8190768-481768 -> 7709000 | G187: 7709000 | H187: =F187-G187 -> 0 | I187: 7710000 | J187: 2024-130 од.,2025-110 од. | K187: =7710000-1000000-417000+1000000+417000+1033000 -> 8743000 | L187: 0 | M187: 0 | O187: 9100000 | P187: 130 од.
B188: 3.2 | C188: Заходи у сфері благоустрою КП "Сансервіс" КМР | D188: 3210 | E188: 1383600 | F188: 1086060 | G188: 1086060 | H188: =F188-G188 -> 0 | I188: 0 | K188: 0 | L188: 0 | M188: 0
B189: 3.3 | C189: Придбання мобільних туалетних кабін (біотуалетів) | D189: 3110 | E189: 0 | F189: =99000+75000+62899 -> 236899 | G189: 163898.12 | H189: =F189-G189 -> 73000.88 | I189: 80000 | J189: 2 од. | K189: =80000+650000 -> 730000 | L189: 0 | M189: 0 | O189: 80000 | P189: 2 од.
B190: 3.4 | C190: Придбання та встановлення джерел резервного живлення для світлофорних об'єктів | D190: 3110 | E190: 0 | F190: =8000000-801832.4 -> 7198167.6 | G190: 0 | H190: =F190-G190 -> 7198167.6 | K190: 8000000 | L190: 0 | M190: 0
C191: Всього | E191: =E187+E188+E189+E190 -> 11383600 | F191: =F187+F188+F189+F190 -> 16230126.6 | G191: =G187+G188+G189+G190 -> 8958958.12 | H191: =F191-G191 -> 7271168.48 | I191: =I187+I188+I189 -> 7790000 | K191: =K187+K188+K189+K190 -> 17473000 | L191: =L187+L188+L189+L190 -> 0 | M191: =M187+M188+M189+M190 -> 0 | O191: =O187+O188+O189 -> 9180000
A192: КПКВК 1216091 "Будівництво об'єктів житлово-комунального господарства"
A193: 4 | B193: 4.1 | C193: Реконструкція Меморіального бульвару | D193: 3142 | E193: 29775978 | F193: 0 | G193: 0 | H193: =F193-G193 -> 0 | I193: 0 | K193: 0 | L193: 0 | M193: 0 | O193: 50000000
B194: 4.2 | C194: «Нове будівництво Меморіального комплексу в секторі почесних поховань на частині земельної ділянки призначеної для розширення кладовища «Центральне» ІІ черга: Дніпропетровська область, Криворізький район, Новопільська сільська рада | D194: 3122 | E194: 62065540 | F194: =62065540-20967076 -> 41098464 | G194: =588253.44 -> 588253.44 | H194: =F194-G194 -> 40510210.56 | I194: 69549410 | K194: =113778432.98+0.02-691313-45864000+2400000-28623120+4000000+5000000 -> 50000000 | L194: 0 | M194: 0 | O194: 69549410
C195: Всього | E195: =E193+E194 -> 91841518 | F195: =F193+F194 -> 41098464 | G195: =G193+G194 -> 588253.44 | H195: =SUM(H193:H194) -> 40510210.56 | I195: =I193+I194 -> 69549410 | K195: =K193+K194 -> 50000000 | L195: =L193+L194 -> 0 | M195: =M193+M194 -> 0 | O195: =O193+O194 -> 119549410
A196: 1216092 «Реалізація проектів (заходів) з відновлення обєктів житлового фонду, пошкоджених / знищених внаслідок збройної агресії, за рахунок коштів місцевих бюджетів»
A197: 5 | B197: 5.1 | C197: Заходи, пов'язані з попередженням і ліквідацією наслідків збройної агресії Російської Федерації ТОВ "Дивобуд", вул. Каунаська, 3; вул. Комерційна, 3; вул. Свято-Миколаївська, 53, 57, 62, 56а | D197: 3210 | E197: 0 | F197: 7302369.24 | G197: 7302369.24 | H197: =F197-G197 -> 0 | I197: 0 | K197: 0 | L197: 0 | M197: 0 | O197: 0
B198: 5.2 | C198: Розробка ПКД по об'єкту "Капітальний ремонт пошкодженого житлового будинку по вул.Віталія Власова,5" | D198: 3131 | E198: 0 | F198: 600000 | G198: 598661.35 | H198: =F198-G198 -> 1338.65 | I198: 0 | K198: 0 | L198: 0 | M198: 0 | O198: 0
B199: 5.3 | C199: Розробка ПКД на капітальний ремонт покрівель будинків за наступними адресами: м. Кривий Ріг: вул. Героїв-підпільників буд. 30, вул. Героїв-підпільників буд. 32, вул. Героїв-підпільників буд. 34 (ТОВ "ЖИТЛОСЕРВІС-КР") | D199: 3210 | E199: 0 | F199: =9220000-311033.13 -> 8908966.87 | G199: 711354.08 | H199: =F199-G199 -> 8197612.79 | K199: 0 | L199: 0 | M199: 0
B200: 5.4 | C200: "Капітальний ремонт пошкодженого житлового будинку по вул.Віталія Власова,5" | D200: 3131 | E200: 0 | F200: 7600000 | G200: 0 | H200: =F200-G200 -> 7600000 | K200: 0 | L200: 0 | M200: 0
B201: 5.5 | C201: Проведення капітального ремонту конструктивних елементів житлового будинку вт.ч. ПКД за адресою:м.Кривий Ріг,вул.Соборності,22 (ОСББ "Соборності 22") | E201: 0 | F201: =110000+2300000 -> 2410000 | K201: 0 | L201: 0 | M201: 0
... 69 more rows

Sheet Лист1
B1: Орієнтовні обсяги фінансува-ння, усього | C1: За роками виконання
C2: 2024 | D2: 2025 | E2: 2026 | F2: 2027 | G2: 2028
A3: Державний бюджет | B3: =C3+D3+E3++F3+G3 -> 0 | C3: 0 | D3: 0 | E3: 0 | F3: 0 | G3: 0
A4: Обласний бюджет (інші субвенції) | B4: 748783.3 | C4: 300 000,00 | D4: =348783.3+100000 -> 448783.3 | E4: 0 | F4: 0 | G4: 0
A6: Бюджет Криворізької міської територіаль-ної громади | B6: =C6+D6+E6+F6+G6 -> 4981085.7 | C6: 934421.14 | D6: 933591.56 | E6: 944929 | F6: 1020364 | G6: 1147780
A7: Інші джерела | B7: =C7+D7+E7+F7+G7 -> 0 | C7: 0 | D7: 0 | E7: 0 | F7: 0 | G7: 0
A8: Усього | B8: =C8+D8+E8+F8+G8 -> 5729869 | C8: 1234421.14 | D8: =D4+D6 -> 1382374.86 | E8: =E4+E6+E7 -> 944929 | F8: =F4+F6 -> 1020364 | G8: =G3+G4+G6+G7 -> 1147780
B13: =B4+B6 -> 5729869
B14: =C8+D8+E8+F8+G8 -> 5729869

Sheet Лист2
L24: 1234421.14 | P24: 920 214,00
